Cogmind - Beta 17.1 @@@ ROGUE MODE // 2026.09.05 @ 18:43:10 Player: Alicianrone Result: Escaped! Performance ------------- Evolutions (9) 4500 Regions Visited (36) 7200 Robots Destroyed (693) 3465 Value Destroyed (33589) 33589 Prototype IDs (136) 2720 Alien Tech Used (5) 1000 Bonus (34882) 34882 TOTAL SCORE: 87356 Bonus ------- Triggered High Security 1000 High Alert Combat Kills 9400 Follower Combat Kills 1062 Hunted by Unchained 1000 Destroyed Unchained 1000 Spooked CY-PHR 4000 Aligned with FarCom 300 Met Data Miner 300 Met Imprinter 300 Destroyed Z-Imprinter 1000 Triggered Deep Caves Wall 500 Exposed GOLEM Chamber 500 Met Warlord at Base 500 MAIN.C Attacked Warlord 500 MAIN.C Attacked Proxy Base 500 Found Hidden Lab 3000 Met Warlord at Research 2000 Invited to Help at Command 2000 Scanned by Researcher 500 Pursued by Intercept 1000 Destroyed MAIN.C Guards 500 Met Warlord at Command 2000 Win 3000 Friendly Fire -980 Cogmind --------- Core Integrity 112/1600 Matter 250/300 Energy 88/100 System Corruption 23% Temperature Cool (1) Movement Flying (45) Location To Epsilon Eridani Parts ------- > --- POWER (3) -------- (None) > --- PROPULSION (7) --- Impulse Thruster Array > --- UTILITY (13) ----- Experimental Optical Array Experimental Targeting Computer Advanced Target Analyzer Experimental Core Analyzer > --- WEAPON (3) ------- (None) > --- INVENTORY (5) ---- Light Antimatter Reactor Advanced Force Booster Long-range Tractor Beam Warp Cannon Micro-nuke Launcher Peak State ------------ > --- POWER ------------ Light Quantum Reactor Improved Quantum Reactor Improved Quantum Reactor > --- PROPULSION ------- Improved Thunder Leg Enhanced Biometal Leg Enhanced Biometal Leg Enhanced Biometal Leg Centrium Leg Centrium Leg Centrium Leg > --- UTILITY ---------- Experimental Power Amplifier High-capacity Storage Unit Assembled Biocell Array Experimental Optical Array Assembled Combat Suite Experimental Cloaking Device Assembled Alloy Armor Assembled Alloy Armor Experimental Powered Armor Advanced Force Field Deep Network Scanner GOLEM Unit > --- WEAPON ----------- Assembled Focal Cannon Linked Autogun > --- INVENTORY -------- Improved Quantum Reactor Heavy Armored Exoskeleton Centrium Leg Zionite Biocell Experimental Thermal Shield Advanced Hardlight Generator Improved Point Defense System Hacking Suite Sensor Drone Bay Dimensional Node Initializer Transdimensional Reconstructor Warp Cannon Linked Autogun Linked Autogun Micro-nuke Launcher [Rating: 239] Favorites ----------- Power Enhanced Fission Core Engine Ion Engine Power Core Enhanced Fission Core Reactor Antimatter Reactor Propulsion Medium Armored Exoskeleton Treads Armored Treads Leg Medium Armored Exoskeleton Wheel Armored Wheel Hover Unit Zionite Glidesys I Flight Unit Flying Fortress v7 Utility Experimental Core Analyzer Device Experimental Heat Sink Storage High-capacity Storage Unit Processor Experimental Core Analyzer Hackware Advanced Hacking Suite Protection Improved Medium Armor Plating Artifact LC Capacitor Weapon Heavy Flail Energy Gun EM Shotgun Energy Cannon Cooled Plasma Cannon Ballistic Gun Linked Autogun Ballistic Cannon Hypervelocity Mass Driver Launcher Precision Grenade Launcher Special Weapon Guided Remote Datajack Impact Weapon Heavy Flail Slashing Weapon Power Sword Piercing Weapon Vortex Lance Special Melee Weapon Dirty Datajack Build | -11 -10 -10 -10 -9 -8 -7 -7 -7 -7 -7 -7 -7 -6 -6 -6 -6 -6 -6 -6 -5 -5 -5 -5 -5 -5 -5 -4 -4 -4 -4 -4 -4 -3 -2 -1 -1 ------- Run | Yrd Mat Min Exi Min Mat Fac Was Fac Low Low Zio Dee Pro Fac Was Fac Low Low Dat Pro Fac Was Fac Upp Upp War Pro Fac Was Fac Arm Lab Res Res Acc Com Slots Evolved 18 | . . . . . 4 2 . . . . . . . 2 . . . . . . 2 . . . . . . 2 . . . . 2 2 2 . Power 2 | . . . . . . . . . . . . . . . . . . . . . . . . . . . . 1 . . . . . . 1 . Propulsion 5 | . . . . . 1 2 . . . . . . . . . . . . . . . . . . . . . 1 . . . . . 1 . . Utility 11 | . . . . . 3 . . . . . . . . 2 . . . . . . 2 . . . . . . . . . . . 2 1 1 . Weapon . | . . . . . . . . . . . . . . . . . . . . . . . . . . . . . . . . . . . . . Parts Attached 414 | 7 15 3 2 5 21 20 4 22 1 . 7 43 8 15 3 8 5 . . 1 16 1 18 . 1 10 . 14 1 9 34 7 7 31 26 49 Power 46 | 1 1 1 . 1 2 4 . 1 . . . 3 1 . 1 . 1 . . . 1 . 1 . . . . 1 . 2 11 . . 5 3 5 Engine 8 | 1 1 1 . . 2 2 . . . . . 1 . . . . . . . . . . . . . . . . . . . . . . . . Core 15 | . . . . 1 . 2 . 1 . . . . . . . . . . . . 1 . 1 . . . . 1 . . 7 . . 1 . . Reactor 23 | . . . . . . . . . . . . 2 1 . 1 . 1 . . . . . . . . . . . . 2 4 . . 4 3 5 Propulsion 99 | 2 6 . . 2 4 2 . 2 . . 1 19 5 3 . . . . . . 5 . 4 . . 4 . 4 1 2 4 1 . 9 5 14 Treads 9 | . 2 . . 2 1 . . . . . . 1 1 . . . . . . . . . . . . . . . . . . . . . . 2 Leg 42 | . . . . . . . . . . . 1 6 4 2 . . . . . . 2 . 3 . . 1 . 2 1 2 3 . . 7 5 3 Wheel 7 | 2 4 . . . 1 . . . . . . . . . . . . . . . . . . . . . . . . . . . . . . . Hover 24 | . . . . . 1 . . . . . . 12 . 1 . . . . . . 1 . 1 . . 2 . 2 . . 1 1 . 2 . . Flight 17 | . . . . . 1 2 . 2 . . . . . . . . . . . . 2 . . . . 1 . . . . . . . . . 9 Utility 189 | 2 4 1 . 1 8 9 3 11 1 . 6 14 1 10 2 7 2 . . 1 7 1 10 . 1 5 . 7 . 3 18 4 6 11 13 20 Device 76 | 1 . 1 . . 2 4 . 4 1 . . 3 . 4 . 3 1 . . . 6 1 4 . 1 2 . 4 . 3 6 2 1 7 6 9 Storage 12 | 1 2 . . . . . 1 1 . . . 1 . 2 . . . . . . . . . . . . . . . . . . 1 2 . 1 Processor 21 | . . . . . . 2 . 2 . . 6 . . . . 2 . . . . . . . . . 1 . . . . . . 2 1 1 4 Hackware 20 | . . . . . . 1 . 2 . . . . 1 . . 1 . . . . . . 2 . . . . 2 . . 4 . 2 1 4 . Protection 59 | . 2 . . 1 6 2 2 2 . . . 10 . 4 2 1 1 . . 1 1 . 4 . . 2 . 1 . . 8 1 . . 2 6 Artifact 1 | . . . . . . . . . . . . . . . . . . . . . . . . . . . . . . . . 1 . . . . Weapon 80 | 2 4 1 2 1 7 5 1 8 . . . 7 1 2 . 1 2 . . . 3 . 3 . . 1 . 2 . 2 1 2 1 6 5 10 Energy Gun 16 | 1 2 . . . 2 . . 2 . . . 3 1 . . . . . . . 1 . 1 . . . . . . . . 1 . 2 . . Energy Cannon 12 | . . . . . 1 1 1 2 . . . 2 . 1 . . 1 . . . . . . . . . . . . . . 1 . 2 . . Ballistic Gun 14 | 1 . . . . 2 . . . . . . . . 1 . . . . . . . . . . . . . . . . . . . 1 4 5 Ballistic Cannon 10 | . 1 . . . . 1 . 1 . . . 2 . . . . . . . . 1 . 1 . . . . . . 2 1 . . . . . Launcher 13 | . 1 1 . 1 1 1 . 2 . . . . . . . 1 . . . . . . 1 . . . . 2 . . . . . . . 2 Special Weapon 3 | . . . . . . . . . . . . . . . . . . . . . 1 . . . . . . . . . . . 1 . . 1 Impact Weapon 6 | . . . 1 . 1 2 . 1 . . . . . . . . . . . . . . . . . . . . . . . . . 1 . . Slashing Weapon 3 | . . . . . . . . . . . . . . . . . . . . . . . . . . . . . . . . . . . 1 2 Piercing Weapon 1 | . . . . . . . . . . . . . . . . . . . . . . . . . . 1 . . . . . . . . . . Special Melee Weapon 2 | . . . 1 . . . . . . . . . . . . . 1 . . . . . . . . . . . . . . . . . . . Unidentified Prototypes 85 | . . 1 . . 6 2 2 6 . . 4 9 1 5 . 1 . 1 . . 5 . 2 . . 7 . 2 . 1 . 7 4 13 3 3 Parts Lost 117 | . . . . 1 5 1 . . . . . 16 . . . . . . . . 1 . 1 . . . . 3 . 6 17 7 . . 17 42 Power 12 | . . . . . 1 . . . . . . 2 . . . . . . . . . . . . . . . . . . 2 1 . . 2 4 Propulsion 28 | . . . . . . . . . . . . 9 . . . . . . . . . . 1 . . . . . . 1 1 . . . 3 13 Utility 48 | . . . . 1 2 1 . . . . . 3 . . . . . . . . 1 . . . . . . 1 . 3 9 4 . . 7 16 Weapon 29 | . . . . . 2 . . . . . . 2 . . . . . . . . . . . . . . . 2 . 2 5 2 . . 5 9 Highest Loss Streak 14 | . . . . 1 3 1 . . . . . 6 . . . . . . . . 1 . 1 . . . . 3 . 3 6 5 . . 9 14 To Critical Strikes 5 | . . . . . . . . . . . . . . . . . . . . . . . . . . . . . . 1 1 . . . . 3 Average Backups 13 | 2 12 24 24 20 19 5 4 8 10 10 9 9 8 11 16 13 13 13 13 13 13 14 15 16 16 16 16 15 15 16 16 13 18 17 13 12 Power . | . 1 1 3 4 3 . . . 1 1 1 . 1 1 1 1 1 1 1 1 1 1 1 1 1 1 1 . . . . . . . . 1 Propulsion 3 | 1 4 10 7 7 6 . . . . . . . . 1 . . . . . . 3 3 5 5 5 5 6 4 5 5 6 4 3 4 1 2 Utility 6 | . . 2 3 2 3 2 2 3 2 2 2 4 6 6 12 10 9 8 9 8 7 6 7 8 8 7 7 8 8 7 7 5 8 7 5 4 Weapon 2 | . 5 10 9 7 6 1 1 4 6 6 6 3 1 2 2 2 2 2 2 2 1 3 2 2 2 2 1 1 1 1 1 . 3 2 3 2 Tool/Special . | . . . . . . . . . . . . . . . . . . . . . . . . . . . . . . . . . . . . . Unused Backups 79 | . 2 . 5 . 10 14 1 8 . . 1 2 . . 2 2 . . . . 7 1 4 . . 1 . 1 2 . 1 . 1 4 1 9 Power 11 | . . . . . 1 3 . . . . . 2 . . . . . . . . 1 . . . . . . . . . 1 . . 1 . 2 Propulsion 24 | . 1 . 3 . 2 5 . . . . . . . . 1 . . . . . 4 1 3 . . 1 . . 2 . . . . 1 . . Utility 20 | . . . . . . 2 1 5 . . . . . . . 2 . . . . 1 . 1 . . . . 1 . . . . 1 1 1 4 Weapon 20 | . 1 . 2 . 7 3 . 2 . . . . . . 1 . . . . . 1 . . . . . . . . . . . . 1 . 2 Tool/Special 4 | . . . . . . 1 . 1 . . 1 . . . . . . . . . . . . . . . . . . . . . . . . 1 Average Slot Usage (%) 83 | . 99 100 84 99 95 73 75 74 76 76 74 88 99 88 70 79 77 73 75 75 78 88 85 83 83 82 87 82 79 80 79 76 74 88 90 82 Engine 1 | . 14 14 14 2 7 5 . . . . . 1 2 . . . . . . . . . . . . . . . . . . . . . . . Core 3 | . . . . 11 1 1 7 7 7 7 7 2 . . . . . . . . 4 5 5 5 5 5 5 9 10 7 2 5 5 4 1 . Reactor 2 | . . . . . . . . . . . . 3 4 6 6 6 6 6 6 6 . . . . . . . . . 2 6 2 . 3 8 6 Leg 14 | . . . . . . . . . . . 3 19 34 27 20 20 20 18 18 18 15 16 16 16 16 15 16 19 15 18 17 10 . . 25 21 Wheel 2 | . 25 28 28 26 18 . . . . . . . . . . . . . . . . . . . . . . . . . . . . . . . Hover 1 | . . . . . . . . . . . . 10 . . . . . . . . . . . . . . . . 5 . . 8 22 24 . . Flight 1 | . . . . . . 14 15 15 15 15 10 . . . . . . . . . . . . . . . . . . . . . . . . 2 Device 13 | . 12 14 14 . 6 17 19 15 22 21 10 3 10 5 1 7 5 9 12 11 11 27 18 22 22 21 22 13 15 15 12 19 18 16 19 22 Storage 6 | . 14 14 14 14 9 . . 5 7 7 7 7 7 6 6 6 6 6 6 6 5 5 5 5 5 5 5 5 5 5 7 8 9 8 7 6 Processor 9 | . . . . . . 3 7 5 7 7 16 15 15 13 13 18 18 12 12 12 11 11 11 11 11 11 11 10 10 8 5 4 . 6 3 5 Hackware 2 | . . . . . . 3 . . . . . . . 6 1 . . . . . . . 7 . . . . 6 10 8 8 . 3 4 3 2 Protection 6 | . 1 . . 13 26 8 10 7 . . 1 7 3 6 6 5 7 9 6 6 11 5 5 11 11 11 11 5 . . 4 4 8 8 8 3 Energy Gun 1 | . 14 4 . 9 2 1 . 2 . . . 5 . . . . . . . . . . . . . . . . . . . . . 1 . . Energy Cannon 3 | . . . . . 5 3 7 4 7 7 7 2 . 1 . . . 3 5 3 1 1 3 4 4 3 5 4 3 7 2 13 4 5 2 3 Ballistic Cannon 2 | . 11 14 . 12 . . . . . . . 2 6 4 6 5 . . . . 5 9 4 . . 1 4 1 . 1 7 . . . . . Impact Weapon 3 | . . . 4 3 7 7 7 7 7 7 7 1 7 6 6 6 6 6 6 6 4 5 5 5 5 2 . . . . . . . . . . Peak Build Rating 239 | 7 13 20 17 21 38 64 69 68 70 70 86 88 92 106 106 104 104 101 101 103 117 117 117 110 110 135 143 159 155 167 168 170 187 218 239 238 Average Rating 113 | 4 8 13 14 19 31 58 65 65 69 69 80 75 85 101 105 102 99 97 100 100 109 116 111 108 108 120 141 151 152 160 148 157 169 209 229 212 On Entrance 98 | . 7 13 14 17 20 37 64 67 67 70 70 82 77 92 106 105 103 91 101 100 101 117 116 106 108 109 135 141 150 155 134 167 160 185 216 232 Avg Prop Armor Cover (%) 12 | . . . . . 6 . . 27 . . 27 12 7 . . . . . . . . . . . . . . . . . 4 . . . . 15 Naked Turns . | . . . . . . . . . . . . . . . . . . . . . . . . . . . . . . . . . . . . . Heaviest Build 185 | 15 92 92 88 95 123 35 35 50 50 50 49 49 55 86 116 87 91 90 90 90 94 97 97 95 95 103 112 125 85 113 136 130 105 110 173 185 Greatest Support 210 | 20 40 24 24 24 24 55 55 57 56 56 56 94 112 112 92 92 92 92 92 92 97 97 97 96 96 103 103 135 140 140 138 138 114 206 210 210 Greatest Overweight (x) 5 | . 4 3 3 3 5 . . 4 . . 4 3 . . 1 . . . . . 1 . 1 . . 1 1 1 . . 1 1 1 1 1 . Average Overweight (x) . | . 2 3 3 3 3 . . . . . . . . . . . . . . . . . . . . . . . . . . . . . . . Largest Inventory Capacity 25 | 8 25 25 25 25 25 25 5 10 10 10 10 10 10 20 20 20 20 20 20 20 20 20 20 20 20 20 20 20 20 20 20 20 20 20 20 20 Average Capacity 17 | 6 21 25 25 25 25 5 5 9 10 10 10 10 10 15 20 20 20 20 20 20 20 20 20 20 20 20 20 20 20 20 20 16 20 20 20 18 Most Carried 25 | 4 24 25 25 25 25 25 5 10 10 10 10 10 10 20 20 20 20 20 20 20 20 20 20 20 20 20 20 20 20 20 20 20 20 20 20 20 Average Carried 16 | 2 12 24 24 24 23 5 4 8 10 10 9 9 10 14 19 19 19 19 20 19 19 19 19 20 20 19 19 19 19 19 19 15 19 19 17 15 Final Capacity 25 | 8 25 25 25 25 25 5 5 10 10 10 10 10 10 20 20 20 20 20 20 20 20 20 20 20 20 20 20 20 20 20 20 20 20 20 20 5 Final Carried 25 | 4 23 25 25 24 25 5 4 10 10 10 10 10 10 20 20 20 20 20 20 20 20 20 20 20 20 20 20 19 20 20 19 20 20 17 12 5 Class Distribution -------------------- 56% | Mutant 14% | Hacker-Mutant 13% | Scavenger-Mutant 3% | Hacker-Tank 3% | Scavenger-Tank Dominant Class ---------------- Mutant | -10/Materials Mutant | -10/Mines Mutant | -10/Exiles Mutant | -9/Mines Mutant | -8/Materials Infiltrator-Mutant | -7/Factory Mutant | -7/Waste Mutant | -7/Factory Mutant | -7/Lower Caves Mutant | -7/Lower Caves Mutant | -7/Zion Scavenger-Mutant | -7/Deep Caves Scavenger-Mutant | -6/Proximity Caves Scavenger-Mutant | -6/Factory Mutant | -6/Waste Mutant | -6/Factory Mutant | -6/Lower Caves Mutant | -6/Lower Caves Mutant | -6/Data Miner Mutant | -5/Proximity Caves Mutant | -5/Factory Mutant | -5/Waste Hacker-Mutant | -5/Factory Mutant | -5/Upper Caves Mutant | -5/Upper Caves Mutant | -5/Warlord Mutant | -4/Proximity Caves Mutant | -4/Factory Hacker-Mutant | -4/Waste Hacker-Mutant | -4/Factory Hacker-Mutant | -4/Armory Golem | -4/Lab Hacker-Mutant | -3/Research Hacker-Sprinter | -2/Research Scavenger-Tank | -1/Access Hacker-Tank | -1/Command Resources | -11 -10 -10 -10 -9 -8 -7 -7 -7 -7 -7 -7 -7 -6 -6 -6 -6 -6 -6 -6 -5 -5 -5 -5 -5 -5 -5 -4 -4 -4 -4 -4 -4 -3 -2 -1 -1 ----------- Run | Yrd Mat Min Exi Min Mat Fac Was Fac Low Low Zio Dee Pro Fac Was Fac Low Low Dat Pro Fac Was Fac Upp Upp War Pro Fac Was Fac Arm Lab Res Res Acc Com Matter Collected 18053 | 251 412 248 . 262 493 413 70 357 50 94 31 1568 515 797 449 720 78 272 . 224 814 52 1350 79 132 180 397 750 80 590 1767 90 107 510 2439 1412 Remotely 5 | . . . . . . . . . . . . . . . . . . . . . . . . . . . . . . . . . . . . 5 Salvage Created 37829 | 104 613 54 . 211 1092 624 161 739 . 130 . 1778 803 1824 1653 1218 124 503 . 185 1745 197 3015 96 254 . 568 2119 . 3056 3495 90 282 1302 6131 3663 Parts 1532 | 5 34 5 . 10 53 19 8 20 . 6 . 60 35 58 22 36 2 16 . 11 70 1 112 5 9 . 31 99 . 139 135 2 6 53 293 177 Haulers Intercepted 50 | . 2 . . . 4 4 . 6 . . . . . 5 . 1 . . . . 3 . 6 . . . . 3 . 5 . . 1 7 3 . Recyclers Shooed 18 | . 2 . . . 1 . . . . . . . . 2 . 1 . . . . . . 2 . . . . 1 . 5 . . 1 . 3 . Parts Field Recycled . | . . . . . . . . . . . . . . . . . . . . . . . . . . . . . . . . . . . . . Retrieved Matter . | . . . . . . . . . . . . . . . . . . . . . . . . . . . . . . . . . . . . . Parts Self-Destructed 154 | . . . . . . . . . . 4 5 . 53 . . . 9 12 . 9 . . . 4 28 . 30 . . . . . . . . . Prevented 56 | . . . . . . . . . 1 . . . 51 . . . 2 . . . . . . . 2 . . . . . . . . . . . Parts Restored . | . . . . . . . . . . . . . . . . . . . . . . . . . . . . . . . . . . . . . Kills | -11 -10 -10 -10 -9 -8 -7 -7 -7 -7 -7 -7 -7 -6 -6 -6 -6 -6 -6 -6 -5 -5 -5 -5 -5 -5 -5 -4 -4 -4 -4 -4 -4 -3 -2 -1 -1 ------- Run | Yrd Mat Min Exi Min Mat Fac Was Fac Low Low Zio Dee Pro Fac Was Fac Low Low Dat Pro Fac Was Fac Upp Upp War Pro Fac Was Fac Arm Lab Res Res Acc Com Combat Hostiles Destroyed 549 | . 12 3 . 8 23 11 1 9 . 5 . 58 17 18 6 11 1 9 . 9 24 . 41 4 5 . 13 30 . 43 50 1 . 6 86 45 Melee 20 | . . . . . 6 4 . . . . . . . 2 . 1 . . . . 2 . 1 . . . . 1 . . 3 . . . . . Guns 50 | . 1 . . 2 2 . . 1 . . . . . . . . . . . . . . . . . . . . . . . . . 4 31 9 Cannons 304 | . 10 . . 4 4 1 . 2 . 1 . 10 12 12 6 9 . 5 . 2 16 . 34 . 5 . 9 17 . 38 47 . . 2 30 28 AOE 149 | . 1 3 . 2 7 4 . 4 . 3 . 45 5 . . . . 4 . 7 6 . 4 3 . . 4 12 . 5 . . . . 25 5 Classes Destroyed 32 | 2 6 1 . 1 3 2 1 . . 1 . 4 1 . 1 . 1 1 . 1 . . . . . . . . . . 2 . . 1 1 2 Worker 27 | . 2 2 . . . 1 . . . . . . . 1 . . . . . . . . 2 . . . . 4 . 4 . . . 1 6 4 Builder 20 | . 1 . . . . 2 . . . . . . . . . . . . . . . . 1 . . . . 2 . 5 . . . . 9 . Tunneler 7 | 1 1 . . 3 . . . . . . . . . . . . . . . . . . . . . . . . . 1 . . . . 1 . Hauler 50 | . 2 . . . 4 4 . 6 . . . . . 5 . 1 . . . . 3 . 6 . . . . 3 . 5 . . 1 7 3 . Recycler 26 | 1 . . . . 1 . . 1 . . . . . 3 . 4 . . . . 3 . 3 . . . . 3 . . . . 1 . 4 2 Minesweeper 2 | . . . . . . . . . . 1 . . . . . . . 1 . . . . . . . . . . . . . . . . . . Mechanic 2 | . . . . . 1 . . . . . . . . . . . . . . . . . . . . . . . . . 1 . . . . . Operator 8 | . . . . . . 1 . . . . . . . . . 1 . . . . . . . . . . . . . . 2 . . . 3 1 Drone 6 | . . . . . . . . . . . . . . . . . . . . 2 . . . . . . . 4 . . . . . . . . Watcher 43 | . 3 . . . 1 3 . 2 . . . . . 3 . 3 . . . . 3 . 5 . . . . 1 . 7 3 . 1 2 3 3 Swarmer 101 | . 3 . . 3 4 4 . 4 . 3 . . 5 2 . . . 4 . 5 7 . 9 4 1 . 5 5 . 10 . . . . 16 7 Cutter 4 | . . . . . . . . . . . . . . . . . . . . . . . . . . . . . . . . . . . 4 . Grunt 150 | . 9 . . 4 11 5 1 1 . 1 . . 12 8 . 4 . 4 . . 8 . 10 . 2 . 4 2 . 9 18 . . . 28 9 Brawler 13 | . . . . 1 . . . . . . . . . . . . . . . . . . . . . . . . . . 4 . . . 5 3 Duelist 10 | . . . . . . . . . . . . . . . . . . 1 . . . . . . . . . 1 . . 3 . . . 4 1 Protector 3 | . . . . . . . . . . . . . . . . . . . . . . . . . . . . . . . 1 . . . 2 . Sentry 51 | . . . . . 6 1 . 2 . . . . . 2 . 4 . . . . 3 . 6 . 1 . 1 5 . 6 8 . . 1 3 2 Demolisher 1 | . . . . . . . . . . . . . . . . . . . . . . . . . . . . . . . . . . 1 . . Specialist 4 | . . . . . . . . . . . . . . . . . . . . . . . . . . . . . . . 4 . . . . . Hunter 33 | . . . . . 2 . . 1 . . . . . 2 . . . . . 1 2 . 4 . . . . 5 . 6 2 . . . 6 2 Programmer 87 | . . . . . . 1 . 1 . 1 . . . 4 . 3 . . . 1 4 . 12 . 1 . 3 7 . 12 10 . . 1 12 14 Behemoth 1 | . . . . . . . . . . . . . . . . . 1 . . . . . . . . . . . . . . . . . . . Compactor 6 | . . . . . . . . . . . . . . . 6 . . . . . . . . . . . . . . . . . . . . . M Guard 1 | . . . . . . . . . . . . . . . . . . . . . . . . . . . . . . . . . . . . 1 Tracker 4 | . . . . . . . . . . . . . . . . . . . . . . . . . . . . . . . . . . . 4 . Combat Programmer 2 | . . . . . . . . . . . . . . . . . . . . . . . . . . . . . . . . . . . 2 . Striker 3 | . . . . . . . . . . . . . . . . . . . . . . . . . . . . . . . . . . . . 3 Executioner 4 | . . . . . . . . . . . . . . . . . . . . . . . . . . . . . . . . . . 3 . 1 Z-Light 11 | . . . . . . . . . . . . 11 . . . . . . . . . . . . . . . . . . . . . . . . Packrat 3 | . . . . . . . . . . . . . . . . . . 2 . . . . . 1 . . . . . . . . . . . . Assembler 2 | . . . . . . . . . . . . 2 . . . . . . . . . . . . . . . . . . . . . . . . Assembled 47 | . . 3 . . . . . . . . . 44 . . . . . . . . . . . . . . . . . . . . . . . . Golem 3 | . . . . . . . . . . . . 3 . . . . . . . . . . . . . . . . . . . . . . . . Thug 1 | . . . . . . . . . . . . 1 . . . . . . . . . . . . . . . . . . . . . . . . Butcher 1 | . . . . . . . . . . . . . . . . . . . . . . . . . . . . . . . . . . . . 1 Martyr 2 | . . . . . . . 2 . . . . . . . . . . . . . . . . . . . . . . . . . . . . . Fireman 1 | . . . . . . . . . . . . 1 . . . . . . . . . . . . . . . . . . . . . . . . Mutant 1 | . . . . . . . . . . . . . 1 . . . . . . . . . . . . . . . . . . . . . . . Troll 1 | . . . . . . . . . . . . . . . . . . . . . . . . . . . . . . . . . . . . 1 Best Kill Streak 40 | 2 4 2 . 5 8 7 1 4 . 3 . 40 5 5 2 5 1 4 . 5 7 . 8 4 3 . 5 10 . 11 7 1 3 2 27 9 Combat Bots Only 38 | . 4 2 . 3 7 4 1 4 . 3 . 38 5 3 2 5 1 4 . 5 5 . 5 4 3 . 5 7 . 6 7 1 . 2 17 6 Max Kills in Single Turn 29 | 1 1 2 . 3 4 2 1 2 . 1 . 29 3 1 1 1 1 2 . 3 2 . 4 3 1 . 4 3 . 4 2 1 1 1 4 3 Gunslinging . | . . . . . . . . . . . . . . . . . . . . . . . . . . . . . . . . . . . . . Exploded 29 | . 1 2 . 2 3 2 . 2 . 1 . 29 3 . . . . 2 . 3 2 . 4 3 . . 4 3 . 2 . . . . 4 3 Melee 1 | . . . . . 1 1 . . . . . . . 1 . 1 . . . . 1 . 1 . . . . 1 . . 1 . . . . . Uniques/NPCs Destroyed 3 | . . . . . . . . . . . . 1 . . . . . . . . . . . . . . . 1 . . . 1 . . . . Z-Imprinter (-7/Deep Caves) CY-PHR (-4/Factory) A5 (-4/Lab) Combat | -11 -10 -10 -10 -9 -8 -7 -7 -7 -7 -7 -7 -7 -6 -6 -6 -6 -6 -6 -6 -5 -5 -5 -5 -5 -5 -5 -4 -4 -4 -4 -4 -4 -3 -2 -1 -1 -------- Run | Yrd Mat Min Exi Min Mat Fac Was Fac Low Low Zio Dee Pro Fac Was Fac Low Low Dat Pro Fac Was Fac Upp Upp War Pro Fac Was Fac Arm Lab Res Res Acc Com Hostile Shots Fired 3477 | . 54 4 . 21 116 149 . 92 . 17 . 121 20 82 4 75 18 16 . 7 64 . 110 11 9 . 50 156 . 243 480 75 12 13 736 722 Missed 1178 | . 22 . . 4 30 60 . 50 . 8 . 41 7 30 . 27 5 2 . 4 18 . 51 5 3 . 18 51 . 66 140 18 9 5 273 231 Intercepted 2 | . . . . . . . . . . . . . . . . . . . . . . . . . . . . . . . . . . . . 2 Deflected 18 | . . . . . . . . . . . . . . 2 . . . . . . . . . . . . . 1 . 6 . . . . . 9 Hits 2299 | . 32 4 . 17 86 89 . 42 . 9 . 80 13 52 4 48 13 14 . 3 46 . 59 6 6 . 32 105 . 177 340 57 3 8 463 491 Melee 150 | . . . . . . . . . . . . . . . 4 . . 2 . . . . . . . . . . . 1 11 . . . 21 111 Projectile 2149 | . 32 4 . 17 86 89 . 42 . 9 . 80 13 52 . 48 13 12 . 3 46 . 59 6 6 . 32 105 . 176 329 57 3 8 442 380 AOE 10 | . . . . . . . . . . . . . . . . . . . . . . . . . . 5 . 1 . . . . . . 2 2 Critical Strikes 127 | . 1 . . . 4 1 . . . . . . . 2 1 1 1 1 . 1 2 . . . . . 3 15 . 3 18 2 . . 26 45 Actively Blocked 1 | . 1 . . . . . . . . . . . . . . . . . . . . . . . . . . . . . . . . . . . Part Disruptions 7 | . . 1 . . . . . . . . . . . . . 1 . . . . . . . . . . . . . . 2 1 . . 1 1 Damage Taken 39318 | . 412 87 . 406 1221 968 12 395 . 132 . 2648 234 922 189 623 197 286 . 233 825 . 892 77 89 171 406 1771 . 2946 6092 1478 50 156 5189 10211 Core 3717 | . 86 19 . 140 195 41 4 32 . . . 418 15 121 . 21 . 16 . . . . 87 . . 12 14 45 . 309 522 104 . 28 193 1295 Absorbed by Shields 9110 | . . . . . . . . . . . . . . . . . . . . . . . 264 . 16 . 152 560 . 904 288 . . . 3922 3004 Reduced by Siege Mode 300 | . . . . . . . . . . . . . . . . . . . . . . . . . . . . . . . . . . . . 300 Redirected to Shielding 220 | . 14 . . . . . . . . . . 64 . . . 18 . . . . 108 . . . . . . . . . . . . . . 16 Ignored by Resistances 3208 | . . . . . 98 . . 11 . . . . . . . . . . . . . . . . . . 123 101 . . . . 11 32 2145 687 Regen/Repaired (Parts) 2436 | . . . . . 32 152 152 2 . . . . 144 134 . 117 . . . . . . 168 . . 114 . 917 . 448 . . . . . 56 Core Remaining (%) 60 | 100 . . . 2 64 . . . . . . . 27 . . . . . . 81 . . . . . . 88 . . . . 39 100 98 . 7 Volleys Fired 2047 | 3 50 8 . 28 59 34 . 30 1 13 3 97 40 69 47 65 . 49 . 13 56 2 169 4 21 5 38 131 . 201 145 74 22 82 273 215 Largest 3 | 2 2 1 . 2 2 1 . 1 1 1 1 2 1 1 1 1 . 1 . 1 2 2 2 1 1 1 1 3 . 2 3 3 1 2 2 3 Hottest 213 | 60 75 45 . 75 75 80 . 90 30 90 90 138 56 105 56 56 . 105 . 105 112 112 112 52 105 56 105 213 . 112 112 100 25 55 55 103 Shots Fired 2697 | 6 79 8 . 35 63 34 . 31 1 13 3 135 40 70 47 64 1 49 . 13 57 4 176 4 21 5 38 133 . 234 232 183 22 99 448 349 Gun 471 | 6 51 1 . 7 28 3 . 12 . . . 37 . . . . . . . . . . . . . . . . . . . . . 32 199 95 Cannon 2118 | . 28 . . 26 27 26 . 17 1 10 3 78 37 69 47 64 1 45 . 7 52 4 175 3 21 5 37 125 . 230 232 183 21 66 232 246 Launcher 103 | . . 7 . 2 8 5 . 2 . 3 . 20 3 1 . . . 4 . 6 4 . 1 1 . . 1 8 . 4 . . . . 17 6 Special 5 | . . . . . . . . . . . . . . . . . . . . . 1 . . . . . . . . . . . 1 1 . 2 Kinetic 1074 | 3 32 . . 26 27 11 . . . . . 41 37 49 47 62 1 10 . 1 50 4 127 . 4 4 27 25 . 20 155 . . 17 199 95 Thermal 1391 | . . . . . 24 15 . 29 1 10 3 30 . 20 . 2 . 35 . 6 2 . 48 3 17 1 10 100 . 210 77 183 21 66 232 246 Explosive 103 | . . 7 . 2 8 5 . 2 . 3 . 20 3 1 . . . 4 . 6 4 . 1 1 . . 1 8 . 4 . . . . 17 6 Electromagnetic 101 | 3 47 1 . 7 4 3 . . . . . 21 . . . . . . . . . . . . . . . . . . . . . 15 . . Phasic 23 | . . . . . . . . . . . . 23 . . . . . . . . . . . . . . . . . . . . . . . . Robot Hit Streak 37 | 1 10 5 . 14 5 8 . 14 . 6 . 13 12 10 16 8 . 5 . 10 6 1 11 10 12 6 4 21 . 16 14 11 11 22 37 33 Robot Miss Streak 9 | 3 3 . . 1 3 3 . 1 . 2 . 6 2 2 2 3 . 9 . 1 3 3 3 . 1 1 1 6 . 5 6 2 1 2 7 3 Penetration Max 2 | . . . . . 1 . . . . . . . 1 1 1 . . . . . 1 . 2 . . . 1 1 . . 2 . . 2 . 1 Secondary Targets . | . . . . . . . . . . . . . . . . . . . . . . . . . . . . . . . . . . . . . Capacitor 32 | . . . . . . . . . . . . . . . . . . . . . . . . . . . . . . 24 5 . 3 . . . Shots Hit Robots 1745 | 2 52 2 23 24 66 49 5 48 . 13 . 61 31 69 39 51 7 25 . 7 44 1 96 3 9 4 21 60 . 127 148 27 11 73 329 218 Core Hits 1193 | 2 28 10 . 17 38 19 2 11 . 6 . 137 23 26 8 22 1 13 . 12 34 1 68 4 6 1 16 59 . 93 75 8 4 32 268 149 Critical Kills 191 | . . . . . 2 1 1 . . . . 10 11 17 6 10 . 3 . 1 19 1 39 1 3 . 8 9 . 5 39 1 . . . 4 Critical Parts Destroyed 142 | . . . . . 5 4 1 2 . . . 2 8 12 2 9 1 3 . . 12 . 31 . . 1 6 2 . 4 36 . . . 1 . Critical Strikes 385 | . 1 . . 3 7 5 2 3 . . . 15 19 29 30 19 1 6 . 1 31 1 74 1 3 3 14 13 . 12 85 1 . . 1 5 Meltdown 6 | . . . . . . . . . . . . . . 1 . . . . . . . . . 1 . . . . . . . 1 . . . 3 Destroy 343 | . . . . . 1 . . . . . . 14 19 25 30 17 . 6 . 1 30 1 70 . 3 3 14 13 . 10 83 . . . 1 2 Blast 4 | . 1 . . 3 . . . . . . . . . . . . . . . . . . . . . . . . . . . . . . . . Smash 27 | . . . . . 6 5 2 3 . . . . . 3 . 2 1 . . . 1 . 4 . . . . . . . . . . . . . Sunder 4 | . . . . . . . . . . . . . . . . . . . . . . . . . . . . . . 2 2 . . . . . Intensify 1 | . . . . . . . . . . . . 1 . . . . . . . . . . . . . . . . . . . . . . . . Melee Attacks 361 | . . . 23 4 39 51 5 61 2 5 1 1 1 54 . 20 7 3 . . 22 . 23 . . . . 5 . 9 19 . . . . 6 Impact 298 | . . . . 4 39 51 5 61 2 5 1 1 1 54 . 20 6 3 . . 22 . 23 . . . . . . . . . . . . . Slashing 6 | . . . . . . . . . . . . . . . . . . . . . . . . . . . . . . . . . . . . 6 Piercing 1 | . . . . . . . . . . . . . . . . . 1 . . . . . . . . . . . . . . . . . . . Entropic 33 | . . . . . . . . . . . . . . . . . . . . . . . . . . . . 5 . 9 19 . . . . . Sneak Attacks 91 | . . . 23 1 6 4 5 11 . . . . . 5 . 7 5 2 . . 7 . 6 . . . . 3 . 4 1 . . . . 1 Combat Hostiles 10 | . . . . . . . 1 3 . . . . . . . . . . . . 2 . 3 . . . . 1 . . . . . . . . Follow-up Attacks . | . . . . . . . . . . . . . . . . . . . . . . . . . . . . . . . . . . . . . Martial Strikes 11 | . . . . . . . . . . . . . . 11 . . . . . . . . . . . . . . . . . . . . . . Damage Inflicted 87021 | 77 1051 175 . 734 3169 2978 450 2786 . 925 . 5193 947 2465 785 1756 573 1128 . 808 1906 17 3722 499 420 79 845 5203 . 7821 5128 1096 520 2971 18832 11962 Guns 11362 | 30 496 21 . 127 448 33 . 213 . . . 391 . . . . . . . . . . . . . . . . . . . . . 666 6258 2679 Cannons 42163 | . 380 . . 300 318 480 . 322 . 400 . 978 574 965 785 746 . 670 . 249 678 17 2427 100 420 79 532 2454 . 5436 4283 1096 520 2257 7170 7527 Explosions 19722 | 47 175 154 . 239 1027 721 . 156 . 376 . 3824 373 . . . . 283 . 559 390 . 440 399 . . 313 1987 . 1414 . . . 48 5350 1447 Melee 13143 | . . . . 68 1376 1744 450 2095 . 149 . . . 1484 . 1010 573 175 . . 838 . 717 . . . . 630 . 844 832 . . . . 158 Ramming 631 | . . . . . . . . . . . . . . 16 . . . . . . . . 138 . . . . 132 . 127 13 . . . 54 151 Kinetic 19977 | . 395 . . 300 428 105 . . . . . 319 574 667 785 746 . 129 . 15 678 17 1986 . 56 46 410 461 . 288 1999 . . 636 6258 2679 Thermal 33039 | 47 175 . . . 283 375 . 535 . 400 . 502 . 298 . . . 541 . 234 . . 441 100 364 33 122 1993 . 5652 2284 1096 520 2305 7212 7527 Explosive 18735 | . . 154 . 239 1027 721 . 156 . 376 . 3824 373 . . . . 283 . 559 390 . 440 399 . . 313 1987 . 910 . . . . 5137 1447 Electromagnetic 1364 | 30 481 21 . 127 55 33 . . . . . 416 . . . . . . . . . . . . . . . . . . . . . 30 171 . Impact 10678 | . . . . 68 1376 1744 450 2095 . 149 . . . 1484 . 1010 572 175 . . 838 . 717 . . . . . . . . . . . . . Slashing 158 | . . . . . . . . . . . . . . . . . . . . . . . . . . . . . . . . . . . . 158 Piercing 1 | . . . . . . . . . . . . . . . . . 1 . . . . . . . . . . . . . . . . . . . Entropic 2306 | . . . . . . . . . . . . . . . . . . . . . . . . . . . . 630 . 844 832 . . . . . Phasic 132 | . . . . . . . . . . . . 132 . . . . . . . . . . . . . . . . . . . . . . . . Highest Corruption 24 | . 1 1 1 3 . . . 2 . 1 1 . 1 4 13 13 4 . . 1 . . 5 . . 4 1 1 1 11 16 19 . . 19 24 Average Corruption 5 | . 1 1 1 1 . . . 1 . 1 1 . 1 2 11 3 3 . . 1 . . 2 . . 4 1 1 1 5 10 10 . . 7 12 Corruption Purged 79 | . . . . . . . . 3 . . . . . 7 . 15 4 . . . . . 6 . . . . . . 5 17 . . . 16 6 Corruption Blocked 1 | . . . . . . . . . . . . . . . . . . . . . . . . . . . . . . . . . . 1 . . Effects 420 | . 3 4 3 5 . . . 11 . . . . 9 10 18 26 1 . . 5 . . 21 . . . 3 1 1 74 41 41 . . 44 99 Message Errors 95 | . 1 2 . 2 . . . 4 . . . . 4 1 4 7 . . . 2 . . 4 . . . 1 1 1 15 11 9 . . 6 20 Matter Fused 87 | . 1 1 2 2 . . . 3 . . . . 1 3 3 7 . . . 1 . . 4 . . . . . . 17 8 8 . . 8 18 Heat Flow Errors 55 | . 1 . . 1 . . . . . . . . 1 1 2 4 . . . 2 . . 5 . . . . . . 7 5 6 . . 8 12 Energy Discharges 54 | . . . . . . . . 2 . . . . . 2 2 3 . . . . . . 1 . . . . . . 15 5 4 . . 9 11 Parts Rejected 8 | . . . . . . . . . . . . . . . . . . . . . . . 1 . . . . . . 1 1 . . . 4 1 Parts Fused 6 | . . . . . . . . . . . . . . . 1 1 . . . . . . . . . . . . . . 2 . . . . 2 Data Loss (minor) 45 | . . . 1 . . . . 1 . . . . 1 2 3 2 . . . . . . 4 . . . 1 . . 11 6 4 . . 2 7 Data Loss (major) 16 | . . . . . . . . . . . . . 2 . . . . . . . . . 1 . . . . . . 1 . 4 . . 2 6 Misfires 20 | . . . . . . . . 1 . . . . . 1 1 . 1 . . . . . 1 . . . . . . 3 1 2 . . 3 6 Alerts 10 | . . 1 . . . . . . . . . . . . . 1 . . . . . . . . . . 1 . . 4 . 1 . . . 2 Misdirections 8 | . . . . . . . . . . . . . . . 1 . . . . . . . . . . . . . . . . . . . 1 6 Weapon Failures 16 | . . . . . . . . . . . . . . . 1 1 . . . . . . . . . . . . . . 2 3 . . 1 8 Overload Shots 97 | . . . . . . . . 6 . 4 3 10 . 5 . . . 1 . 3 . . 6 . 3 . 3 39 . 14 . . . . . . Effects 5 | . . . . . . . . 1 . 1 . . . . . . . . . . . . 1 . . . . 2 . . . . . . . . Energy Bleed 2 | . . . . . . . . . . . . . . . . . . . . . . . . . . . . 2 . . . . . . . . Heat Surge 3 | . . . . . . . . 1 . 1 . . . . . . . . . . . . 1 . . . . . . . . . . . . . Overflow Damage 6374 | . 15 . . 28 264 599 169 504 . 92 . 127 . 528 . 405 155 166 . 111 575 . 451 72 62 . . 341 . 531 259 52 62 125 500 181 Projectiles 1284 | . 8 . . . . 25 . . . 60 . 24 . 25 . 7 . 69 . 62 . . 44 9 62 . . 154 . 233 40 52 62 125 146 77 Explosions 1091 | . 7 . . . 18 48 . . . 23 . 103 . . . . . . . 49 8 . 46 63 . . . 154 . 145 . . . . 354 73 Melee 3999 | . . . . 28 246 526 169 504 . 9 . . . 503 . 398 155 97 . . 567 . 361 . . . . 33 . 153 219 . . . . 31 Knockbacks 86 | . 2 . . 4 2 4 3 4 . 2 . 2 1 7 . 8 . 3 . . 4 . 13 . . . . 5 . 3 18 . . . . 1 Impact 40 | . . . . 1 2 4 3 4 . 2 . . . 6 . 2 . 1 . . 3 . 5 . . . . 3 . 3 . . . . . 1 Kinetic 42 | . 2 . . 2 . . . . . . . 2 1 . . 6 . 2 . . 1 . 8 . . . . 2 . . 16 . . . . . Secondary 4 | . . . . 1 . . . . . . . . . 1 . . . . . . . . . . . . . . . . 2 . . . . . Self-Inflicted Damage 1066 | . 40 24 . . 30 24 . . . . . 75 . . . . . . . 179 . . . . . . 48 327 . 127 . . . . 163 29 Shots 24 | . 1 1 . . 1 1 . . . . . 4 . . . . . . . 4 . . . . . . 1 4 . 2 . . . . 4 1 Rammed 1 | . . . . . . . . . . . . . . . . . . . . . . . . . . . . . . . . . . . . 1 Targets Rammed 28 | . . . . . . . . . . . . . . 2 . . . . . . . . 3 . . . . 4 . 9 1 . . . 3 6 Kicked 27 | . . . . . . . . . . . . . . 2 . . . . . . . . 3 . . . . 4 . 9 1 . . . 3 5 Crushed . | . . . . . . . . . . . . . . . . . . . . . . . . . . . . . . . . . . . . . Highest Temperature 378 | . 159 15 . 249 349 292 . 190 . 232 48 234 205 185 180 244 11 88 . 256 31 . 257 . . . . 347 . 319 378 274 . 5 272 247 Average Temperature 78 | . 49 7 . 68 89 104 . 50 . 67 26 81 95 36 71 102 5 40 . 97 19 . 113 . . . . 139 . 94 77 95 . 3 56 69 Received Heat Transfer 5919 | . 150 20 . 93 576 294 . 69 . 36 . 585 90 315 . 147 12 99 . . 171 . 83 . . . 47 303 . 190 1482 . . 27 503 627 Effects 9 | . . . . . . . . . . . . . . . . . . . . . . . . . . . . . . 1 8 . . . . . Energy Bleed 2 | . . . . . . . . . . . . . . . . . . . . . . . . . . . . . . 1 1 . . . . . Interference 7 | . . . . . . . . . . . . . . . . . . . . . . . . . . . . . . . 7 . . . . . Siege Activations 3 | . . . . . . . . . . . . . . . . . . . . . . . . . . . . . . . . . . . . 3 Total Turns 35 | . . . . . . . . . . . . . . . . . . . . . . . . . . . . . . . . . . . . 35 Longest Duration 26 | . . . . . . . . . . . . . . . . . . . . . . . . . . . . . . . . . . . . 26 Martial Activations 3 | . . . . . . . . . . . . . . 3 . . . . . . . . . . . . . . . . . . . . . . Total Turns 114 | . . . . . . . . . . . . . . 114 . . . . . . . . . . . . . . . . . . . . . . Longest Duration 44 | . . . . . . . . . . . . . . 44 . . . . . . . . . . . . . . . . . . . . . . Shielding Activations 3 | . . . . . . . . . . . . . . . . . . . . . . . . . . . . 1 . 1 . . . . . 1 Total Turns 84 | . . . . . . . . . . . . . . . . . . . . . . . . . . . . 22 . 15 . . . . . 47 Longest Duration 47 | . . . . . . . . . . . . . . . . . . . . . . . . . . . . 22 . 15 . . . . . 47 Robots Disrupted 1 | . . . . . . . . . . . . . . . . . . . . . . . . . . . . . . . . . . 1 . . Combat Hostiles . | . . . . . . . . . . . . . . . . . . . . . . . . . . . . . . . . . . . . . Robots Corrupted 52 | . . . . 1 5 6 1 7 . 1 . 3 . 8 . 4 2 1 . . 4 . 6 . . . . 1 . . . . . . . 2 Combat Hostiles 22 | . . . . . 4 2 1 2 . 1 . 3 . 4 . 1 2 . . . . . 2 . . . . . . . . . . . . . Parts Fried 77 | . 2 . . 1 7 10 1 7 . 1 . . . 5 . 10 . 1 . . 8 . 12 . . . . 3 . . . . . 1 4 4 Impact Corruptions 115 | . . . . 1 11 15 3 17 . 2 . . . 17 . 11 7 4 . . 11 . 12 . . . . 2 . . . . . . . 2 Robots Melted 6 | . . . . . . . . . . . . . . 1 . . . . . . . . . 1 . . . . . . . 1 . . . 3 Combat Hostiles 5 | . . . . . . . . . . . . . . . . . . . . . . . . 1 . . . . . . . 1 . . . 3 Parts Melted 49 | . . . . . . . . 7 . 3 . 1 1 4 . . . . . 2 . . . . 1 . . 9 . 6 1 5 . 1 4 4 Heat Transferred 23283 | 50 300 . . . 518 600 . 670 . 385 . 493 . 340 . . . 830 . 240 . . 540 150 440 50 130 2320 . 4960 1200 595 275 1275 3847 3075 Parts Sabotaged 6 | . . . . . . . . . . . . . . . . . . . . . . . . . . . . . . . 3 . . . . 3 Parts Stolen . | . . . . . . . . . . . . . . . . . . . . . . . . . . . . . . . . . . . . . Parts Stripped . | . . . . . . . . . . . . . . . . . . . . . . . . . . . . . . . . . . . . . Power Chain Reactions 6 | 1 3 . . . . . . . . . . . . . . . . . . . . . . . . . . . . . . . . 1 1 . Alert | -11 -10 -10 -10 -9 -8 -7 -7 -7 -7 -7 -7 -7 -6 -6 -6 -6 -6 -6 -6 -5 -5 -5 -5 -5 -5 -5 -4 -4 -4 -4 -4 -4 -3 -2 -1 -1 ------- Run | Yrd Mat Min Exi Min Mat Fac Was Fac Low Low Zio Dee Pro Fac Was Fac Low Low Dat Pro Fac Was Fac Upp Upp War Pro Fac Was Fac Arm Lab Res Res Acc Com Maximum Alert Level 5 | . . . . . 1 2 . 2 . . . . . 2 . . . . . . 1 . 2 . . . . 2 . 4 4 . . 1 5 5 Low Security (%) 46 | 100 100 100 . 100 51 53 100 16 . . . . . 61 100 100 . . . . 15 100 64 . . . . 7 100 31 . . 100 88 8 . Level 1 17 | . . . . . 48 8 . 13 . . . . . 35 . . . . . . 84 . 11 . . . . 76 . 9 . . . 11 . . Level 2 17 | . . . . . . 37 . 69 . . . . . 2 . . . . . . . . 24 . . . . 15 . 29 69 . . . 7 . Level 3 6 | . . . . . . . . . . . . . . . . . . . . . . . . . . . . . . 28 20 . . . 35 . Level 4 4 | . . . . . . . . . . . . . . . . . . . . . . . . . . . . . . 1 10 . . . 16 30 Level 5 2 | . . . . . . . . . . . . . . . . . . . . . . . . . . . . . . . . . . . 3 34 High Security 4 | . . . . . . . . . . . . . . . . . . . . . . . . . . . . . . . . . . . 27 34 Max Security . | . . . . . . . . . . . . . . . . . . . . . . . . . . . . . . . . . . . . . Peak Influence 2849 | 5 142 35 . 81 313 497 180 618 . . . . . 417 100 144 . . . . 391 122 560 . . . . 507 176 1226 1151 . 49 248 2223 2849 Initial 1422 | . . 35 . . . 116 160 83 . . . . . 402 100 . . . . . 181 122 . . . . . 38 176 11 522 . . 11 132 1422 Average 437 | . 63 2 . 28 162 280 148 415 . . . . . 200 21 54 . . . . 312 32 180 . . . . 296 99 483 691 . 24 45 1263 1774 Influence Increases 20359 | 10 452 58 . 215 814 702 69 1350 60 125 . . 786 874 . 518 35 235 . 170 986 . 1389 90 125 . 300 1267 . 1951 1492 . 142 574 3117 2453 Destroy 0b10 Robot/C 9960 | . 240 . . 160 480 220 20 560 . 100 . . 480 360 . 220 20 180 . 140 480 . 820 80 100 . 260 500 . 860 980 . . 120 1680 900 Destroy 0b10 Robot/NC 965 | 10 45 10 . 15 35 55 . 45 . 5 . . . 60 . 45 5 5 . 10 45 . 85 . . . . 65 . 110 35 . 15 50 155 60 Destroy Leader 2212 | . 50 . . 30 140 44 . 146 . 20 . . 30 116 . 88 10 20 . 20 122 . 192 10 10 . 40 146 . 192 218 . 4 68 340 156 Allied During Kill 362 | . . . . . 2 . . 285 . . . . 66 8 . . . . . . . . . . . . . . . 1 . . . . . . Trap Triggered on 0b10 30 | . . . . . . 20 . 10 . . . . . . . . . . . . . . . . . . . . . . . . . . . . Successful Hack 807 | . 15 . . . 26 123 . 53 . . . . . 66 . 50 . . . . 35 . 94 . . . . 70 . 40 . . 73 45 72 45 Select Force Hacks 290 | . 60 . . . 60 . . 120 . . . . 30 . . 20 . . . . . . . . . . . . . . . . . . . . Disable Machine 825 | . 30 . . . 15 105 . 15 . . . . . 45 . 45 . . . . 60 . 30 . . . . 75 . 240 60 . . 15 45 45 Anti-Garrison Action 350 | . . . . . . . . . . . . . . . . . . . . . . . . . . . . . . . . . . 150 150 50 Destroy Structure 2193 | . 12 48 . 10 41 60 49 26 . . . . . 24 . 5 . . . . 64 . 138 . . . . 266 . 328 64 . 20 36 540 462 Advance Influence 300 | . . . . . . . . . . . . . . 150 . . . . . . 150 . . . . . . . . . . . . . . . Partial Spotted 240 | . . . . . . 30 . 90 . . . . . 15 . . . . . . . . . . . . . 15 . 15 . . 15 15 15 30 Lose Combat Pursuer 1725 | . . . . . 15 45 . . 60 . . . 180 30 . 45 . 30 . . 30 . 30 . 15 . . 30 . 165 135 . 15 75 120 705 Miscellaneous 100 | . . . . . . . . . . . . . . . . . . . . . . . . . . . . 100 . . . . . . . . Influence Decreases 17580 | 10 361 149 . 215 556 502 408 857 433 302 62 . 386 988 286 505 48 235 . 120 685 351 833 616 155 . 238 826 487 899 1440 1120 122 373 1115 1897 Entered New Map 4587 | . . 56 . . . 142 298 36 227 46 62 . . 148 186 . 5 . . . 19 229 . 206 6 . . 24 327 5 546 1120 . 9 89 801 Time Decay 10259 | 10 361 93 . 205 492 350 110 581 206 246 . . 386 650 100 505 43 235 . 120 506 122 513 410 149 . 228 622 160 644 644 . 122 364 556 526 Lost Part 930 | . . . . 10 40 10 . . . . . . . . . . . . . . 10 . 10 . . . . 30 . 60 170 . . . 170 420 Lost Ally 604 | . . . . . 24 . . 240 . 10 . . . 40 . . . . . . . . 10 . . . 10 . . 40 80 . . . . 150 Purge Threat 1200 | . . . . . . . . . . . . . . 150 . . . . . . 150 . 300 . . . . 150 . 150 . . . . 300 . Squads Dispatched 246 | . 2 . . 1 5 6 . 22 . . . . 2 11 . 14 . . . . 9 . 23 . 1 . . 16 . 17 16 . 2 11 51 37 Investigation 62 | . 2 . . . 3 1 . 10 . . . . 2 3 . 6 . . . . 1 . 10 . 1 . . 7 . 3 2 . 1 3 5 2 Extermination 49 | . . . . . . 1 . 5 . . . . . 4 . 5 . . . . 2 . 7 . . . . 6 . 6 4 . . . 4 5 Reinforcement 50 | . . . . . 2 4 . 2 . . . . . 3 . 3 . . . . 5 . 5 . . . . 3 . 6 6 . 1 3 5 2 Assault 67 | . . . . 1 . . . 3 . . . . . . . . . . . . . . 1 . . . . . . 2 4 . . . 28 28 Garrison 11 | . . . . . . . . 2 . . . . . 1 . . . . . . 1 . . . . . . . . . . . . . 7 . Intercept 7 | . . . . . . . . . . . . . . . . . . . . . . . . . . . . . . . . . . 5 2 . Searches Triggered . | . . . . . . . . . . . . . . . . . . . . . . . . . . . . . . . . . . . . . Unchained Authorized 1 | . . . . . . . . . . . . . . . . . . . . . . . . . . . . . . . . . 1 . . . Data Miner Redirects 10 | . . . . . . . . . . . . . . . . . . . . . 1 . 3 . . . . 4 . 1 1 . . . . . Construction Impeded 2 | . . . . . . . . . . . . . . . . . . . . . . . . . . . . . . 1 . . . . 1 . Haulers Reinforced 18 | . . . . . . 3 . 2 . . . . . 2 . 1 . . . . 3 . 3 . . . . . . 2 . . . 1 1 . Active Scanning Responses . | . . . . . . . . . . . . . . . . . . . . . . . . . . . . . . . . . . . . . Cargo Convoy Interrupts . | . . . . . . . . . . . . . . . . . . . . . . . . . . . . . . . . . . . . . Stealth | -11 -10 -10 -10 -9 -8 -7 -7 -7 -7 -7 -7 -7 -6 -6 -6 -6 -6 -6 -6 -5 -5 -5 -5 -5 -5 -5 -4 -4 -4 -4 -4 -4 -3 -2 -1 -1 --------- Run | Yrd Mat Min Exi Min Mat Fac Was Fac Low Low Zio Dee Pro Fac Was Fac Low Low Dat Pro Fac Was Fac Upp Upp War Pro Fac Was Fac Arm Lab Res Res Acc Com Distress Signals 39 | . 1 1 . 1 5 2 . . . . . . . . . 2 . . . . 1 . . . . 2 . 1 . 7 1 . 1 9 3 2 Communications Jammed . | . . . . . . . . . . . . . . . . . . . . . . . . . . . . . . . . . . . . . Distress Signals . | . . . . . . . . . . . . . . . . . . . . . . . . . . . . . . . . . . . . . Times Spotted 905 | . 17 3 . 6 30 20 6 24 4 10 . 61 60 23 9 19 1 9 . 8 26 . 49 7 12 4 10 38 . 72 64 1 11 23 120 158 Peak Tracking Total 37 | . 5 1 . 3 10 4 6 4 4 3 . 37 10 3 3 4 1 3 . 5 3 . 5 4 7 3 5 7 . 6 9 1 5 5 10 27 Tactical Retreats 59 | . . . . . 1 2 1 . 2 . . 2 4 1 3 3 . 2 . . 2 . 2 . 1 . . 2 . 7 7 . 1 2 4 10 Traps | -11 -10 -10 -10 -9 -8 -7 -7 -7 -7 -7 -7 -7 -6 -6 -6 -6 -6 -6 -6 -5 -5 -5 -5 -5 -5 -5 -4 -4 -4 -4 -4 -4 -3 -2 -1 -1 ------- Run | Yrd Mat Min Exi Min Mat Fac Was Fac Low Low Zio Dee Pro Fac Was Fac Low Low Dat Pro Fac Was Fac Upp Upp War Pro Fac Was Fac Arm Lab Res Res Acc Com Traps Triggered 29 | . 2 . . . . 1 . 1 . . . . . 3 . . . . . . 3 . 3 . . . . 1 . 7 3 . . 1 . 4 Indirectly 2 | . . . . . . . . . . . . . . . . . . . . . 2 . . . . . . . . . . . . . . . Trap Hack Attempts . | . . . . . . . . . . . . . . . . . . . . . . . . . . . . . . . . . . . . . Triggered . | . . . . . . . . . . . . . . . . . . . . . . . . . . . . . . . . . . . . . Disarmed . | . . . . . . . . . . . . . . . . . . . . . . . . . . . . . . . . . . . . . Reprogrammed 23 | . 6 . . . . 6 . 5 . . . . . . . . . . . . . . . . . . . . . . 6 . . . . . Reused 5 | . . . . . . 2 . 1 . . . 2 . . . . . . . . . . . . . . . . . . . . . . . . Traps Extracted . | . . . . . . . . . . . . . . . . . . . . . . . . . . . . . . . . . . . . . Installed 3 | . . . . . 1 . . . . . . 2 . . . . . . . . . . . . . . . . . . . . . . . . Triggered 3 | . . . . . . 2 . 1 . . . . . . . . . . . . . . . . . . . . . . . . . . . . Most Traps Carried 2 | . . . . 1 1 . . . 1 2 2 2 . . . . . . . . . . . . . . . . . . . . . . . . Machines | -11 -10 -10 -10 -9 -8 -7 -7 -7 -7 -7 -7 -7 -6 -6 -6 -6 -6 -6 -6 -5 -5 -5 -5 -5 -5 -5 -4 -4 -4 -4 -4 -4 -3 -2 -1 -1 ---------- Run | Yrd Mat Min Exi Min Mat Fac Was Fac Low Low Zio Dee Pro Fac Was Fac Low Low Dat Pro Fac Was Fac Upp Upp War Pro Fac Was Fac Arm Lab Res Res Acc Com Machines Disabled 74 | . 2 . . . 1 7 . 1 . . 3 2 . 3 . 3 . . . 1 4 . 2 . . . 1 5 . 18 4 6 . 2 4 5 Max in Single Turn 5 | . 1 . . . 1 2 . . . . 1 1 . 1 . 1 . . . 1 2 . 1 . . . 1 1 . 5 1 2 . 1 1 2 Garrison Access 13 | . . . . . . 1 . 2 . . . . . 2 . . . . . . 1 . 2 . . . . 1 . 1 . . 1 1 1 . Phase Generator 1 | . . . . . . . . . . . . . . . . . . . . . . . . . . . . . . . . . . . . 1 Energy Cycler 1 | . . . . . . . . . . . . . . . . . . . . . . . . . . . . . . . . . . . 1 . Machines Repaired . | . . . . . . . . . . . . . . . . . . . . . . . . . . . . . . . . . . . . . Machines Dismantled . | . . . . . . . . . . . . . . . . . . . . . . . . . . . . . . . . . . . . . Machines Sabotaged . | . . . . . . . . . . . . . . . . . . . . . . . . . . . . . . . . . . . . . Overloaded Fab Kills . | . . . . . . . . . . . . . . . . . . . . . . . . . . . . . . . . . . . . . Hacking | -11 -10 -10 -10 -9 -8 -7 -7 -7 -7 -7 -7 -7 -6 -6 -6 -6 -6 -6 -6 -5 -5 -5 -5 -5 -5 -5 -4 -4 -4 -4 -4 -4 -3 -2 -1 -1 --------- Run | Yrd Mat Min Exi Min Mat Fac Was Fac Low Low Zio Dee Pro Fac Was Fac Low Low Dat Pro Fac Was Fac Upp Upp War Pro Fac Was Fac Arm Lab Res Res Acc Com Machines Accessed 209 | . 9 1 2 . 9 9 . 24 2 . . . 2 22 . 14 2 1 3 . 8 . 24 1 4 1 . 20 . 14 7 1 8 2 10 9 Terminals 92 | . 6 . . . 5 4 . 11 . . . . . 8 . 4 . . . . 4 . 10 . 1 . . 9 . 6 5 . 3 2 7 7 Fabricators 30 | . . . . . . 2 . 4 . . . . . 4 . 4 . . . . 2 . 3 . . . . 5 . 3 2 . . . 1 . Repair Stations 21 | . 1 . . . 1 1 . 1 . . . . 1 3 . 2 . . . . . . 3 . . . . 1 . 3 . . 1 . 1 2 Recycling Units 15 | . 2 . . . 2 . . 4 . . . . 1 2 . 1 . . . . . . 2 . . . . 1 . . . . . . . . Scanalyzers 20 | . . . . . . 1 . 2 . . . . . 3 . 1 . . . . 1 . 4 . . . . 3 . 1 . . 3 . 1 . Garrison Access 14 | . . . . . 1 1 . 2 . . . . . 2 . 2 . . . . 1 . 2 . . . . 1 . 1 . . 1 . . . Total Hacks 580 | . 23 1 2 . 24 28 . 54 7 . . . 7 48 . 35 2 12 20 . 20 . 78 1 13 1 . 66 . 41 21 1 24 6 25 20 Successful 305 | . 8 1 2 . 10 19 . 28 7 . . . 4 30 . 10 2 12 20 . 8 . 34 1 13 1 . 34 . 16 13 1 12 4 9 6 Failed 273 | . 15 . . . 14 9 . 26 . . . . 3 17 . 25 . . . . 12 . 44 . . . . 32 . 25 8 . 12 2 15 14 Catastrophic 52 | . 3 . . . 1 . . 5 . . . . . 2 . 5 . . . . 3 . 9 . . . . 7 . 6 2 . . 1 6 2 Database Lockouts 2 | . . . . . . . . . . . . . . 1 . . . . . . . . . . . . . . . . . . . . 1 . Manual 196 | . 13 . 1 . 13 10 . 26 . . . . 1 8 . 12 . . . 1 8 . 24 . . 1 . 16 . 23 9 . 8 2 7 13 Terminals 251 | . 16 . . . 14 13 . 25 . . . . . 19 . 10 . . . . 9 . 31 . 5 . . 28 . 19 12 . 12 6 16 16 Fabricators 94 | . . . . . . 4 . 15 . . . . . 8 . 11 . . . . 7 . 12 . . . . 12 . 11 9 . . . 5 . Repair Stations 53 | . 2 . . . 2 2 . 2 . . . . 3 6 . 4 . . . . . . 11 . . . . 6 . 7 . . 3 . 1 4 Recycling Units 34 | . 5 . . . 3 . . 6 . . . . 4 4 . 3 . . . . . . 5 . . . . 4 . . . . . . . . Scanalyzers 63 | . . . . . . 5 . 4 . . . . . 8 . 2 . . . . 3 . 14 . . . . 15 . 3 . . 6 . 3 . Garrison Access 30 | . . . . . 5 4 . 2 . . . . . 3 . 5 . . . . 1 . 5 . . . . 1 . 1 . . 3 . . . Terminal Hacks 129 | . 3 1 2 . 4 6 . 6 7 . . . . 6 . 1 2 12 20 . 3 . 8 1 13 1 . 7 . 4 5 1 5 3 4 4 Record 33 | . . . 1 . . . . . 6 . . . . . . . . 12 2 . . . . . 11 . . . . . . . . . . 1 Part Schematic 12 | . . . . . . . . 1 . . . . . 1 . . . . 9 . . . . . . . . . . . 1 . . . . . Robot Schematic 6 | . . . . . . . . . . . . . . . . . . . 6 . . . . . . . . . . . . . . . . . Robot Analysis 1 | . . . . . . . . . . . . . . . . . . . . . . . . . . . . . . . . . . . 1 . Prototype ID Bank 4 | . 1 . . . . . . . . . . . . . . . . . 3 . . . . . . . . . . . . . . . . . Open Door 9 | . . 1 . . . . . . 1 . . . . . . . 2 . . . . . . 1 2 1 . . . . 1 . . . . . Level Access Points 1 | . . . . . . . . . . . . . . . . . . . . . . . . . . . . . . . . . 1 . . . Branch Access Points 6 | . . . . . . . . . . . . . . 1 . . . . . . . . 1 . . . . 1 . 1 . . . 1 1 . Emergency Access Points 2 | . . . . . . . . . . . . . . . . . . . . . . . . . . . . . . . . . . . . 2 Terminal Index 5 | . . . . . 1 1 . . . . . . . . . . . . . . 1 . . . . . . . . 1 . . 1 . . . Repair Station Index 2 | . . . . . . 1 . . . . . . . . . . . . . . . . 1 . . . . . . . . . . . . . Scanalyzer Index 1 | . . . . . . . . . . . . . . . . . . . . . . . 1 . . . . . . . . . . . . . Alert Level 5 | . . . . . . 1 . . . . . . . . . 1 . . . . . . 1 . . . . 1 . 1 . . . . . . Unreport Threat 9 | . . . . . . . . . . . . . . 1 . . . . . . 1 . 2 . . . . 2 . 1 . . . . 2 . Locate Traps 11 | . 1 . . . 3 1 . . . . . . . 2 . . . . . . . . 1 . . . . 2 . . 1 . . . . . Reprogram Traps 4 | . 1 . . . . 1 . 1 . . . . . . . . . . . . . . . . . . . . . . 1 . . . . . Recall Investigation 2 | . . . . . . . . 1 . . . . . . . . . . . . . . . . . . . . . . 1 . . . . . Recall Extermination 2 | . . . . . . . . 1 . . . . . . . . . . . . . . . . . . . 1 . . . . . . . . Hauler Manifests 6 | . . . . . . . . 1 . . . . . 1 . . . . . . 1 . 1 . . . . . . . . . 1 1 . . Registered Components 4 | . . . . . . 1 . 1 . . . . . . . . . . . . . . . . . . . . . . . . 1 1 . . Registered Prototypes 1 | . . . . . . . . . . . . . . . . . . . . . . . . . . . . . . . . . 1 . . . Proto ID Catalog 1 | . . . 1 . . . . . . . . . . . . . . . . . . . . . . . . . . . . . . . . . Disengage Seal 1 | . . . . . . . . . . . . . . . . . . . . . . . . . . . . . . . . . . . . 1 Release Object 1 | . . . . . . . . . . . . . . . . . . . . . . . . . . . . . . . . 1 . . . . Fabricator Hacks 39 | . . . . . . 1 . 6 . . . . . 5 . 2 . . . . 2 . 5 . . . . 6 . 3 7 . . . 2 . Network Status 10 | . . . . . . 1 . 1 . . . . . 2 . . . . . . . . 2 . . . . 2 . 2 . . . . . . Load Schematic 18 | . . . . . . . . 3 . . . . . 2 . 2 . . . . . . 3 . . . . 3 . . 4 . . . 1 . Build 11 | . . . . . . . . 2 . . . . . 1 . . . . . . 2 . . . . . . 1 . 1 3 . . . 1 . Repair Station Hacks 27 | . . . . . 2 2 . 2 . . . . 2 6 . 3 . . . . . . 4 . . . . 3 . 2 . . 1 . . . Scan Component 15 | . . . . . 1 1 . 1 . . . . 1 3 . 2 . . . . . . 3 . . . . 2 . 1 . . . . . . Repair 11 | . . . . . 1 1 . 1 . . . . 1 3 . 1 . . . . . . 1 . . . . 1 . 1 . . . . . . Refit 1 | . . . . . . . . . . . . . . . . . . . . . . . . . . . . . . . . . 1 . . . Recycling Unit Hacks 5 | . 1 . . . . . . 1 . . . . 1 1 . 1 . . . . . . . . . . . . . . . . . . . . Retrieve Components 5 | . 1 . . . . . . 1 . . . . 1 1 . 1 . . . . . . . . . . . . . . . . . . . . Scanalyzer 36 | . . . . . . 4 . 3 . . . . . 5 . . . . . . . . 7 . . . . 12 . 1 . . 3 . 1 . Insert Component 12 | . . . . . . 1 . . . . . . . 2 . . . . . . . . 3 . . . . 5 . 1 . . . . . . Analyze 7 | . . . . . . 1 . . . . . . . 2 . . . . . . . . 1 . . . . 3 . . . . . . . . Retrieve Study 17 | . . . . . . 2 . 3 . . . . . 1 . . . . . . . . 3 . . . . 4 . . . . 3 . 1 . Garrison Access Hacks 11 | . . . . . . 1 . 2 . . . . . 2 . . . . . . 1 . 2 . . . . 1 . 1 . . 1 . . . Seal Access 11 | . . . . . . 1 . 2 . . . . . 2 . . . . . . 1 . 2 . . . . 1 . 1 . . 1 . . . Unauthorized Hacks 58 | . 4 . . . 4 5 . 8 . . . . 1 5 . 3 . . . . 2 . 8 . . . . 5 . 5 1 . 2 1 2 2 Terminals 27 | . 2 . . . 2 3 . 2 . . . . . 3 . 1 . . . . 1 . 3 . . . . 3 . 2 . . 2 1 1 1 Assimilate 5 | . . . . . 1 . . 2 . . . . . . . . . . . . . . 1 . . . . 1 . . . . . . . . Botnet 20 | . 1 . . . 1 3 . . . . . . . 2 . 1 . . . . 1 . 2 . . . . 2 . 2 . . 2 1 1 1 Operators 2 | . 1 . . . . . . . . . . . . 1 . . . . . . . . . . . . . . . . . . . . . . Fabricators 17 | . . . . . . 2 . 2 . . . . . 1 . 1 . . . . 1 . 4 . . . . 2 . 2 1 . . . 1 . Report 1 | . . . . . . . . . . . . . . . . . . . . . . . 1 . . . . . . . . . . . . . Prioritize 2 | . . . . . . . . 1 . . . . . . . . . . . . . . . . . . . . . . . . . . 1 . Liberate 2 | . . . . . . 1 . . . . . . . . . . . . . . . . . . . . . . . 1 . . . . . . Haulers 6 | . . . . . . 1 . . . . . . . 1 . . . . . . 1 . 1 . . . . 1 . 1 . . . . . . Download 1 | . . . . . . . . . . . . . . . . 1 . . . . . . . . . . . . . . . . . . . . Recompile 5 | . . . . . . . . 1 . . . . . . . . . . . . . . 2 . . . . 1 . . 1 . . . . . Repair Stations 2 | . . . . . . . . . . . . . . . . . . . . . . . . . . . . . . 1 . . . . . 1 Patch 2 | . . . . . . . . . . . . . . . . . . . . . . . . . . . . . . 1 . . . . . 1 Recycling Units 12 | . 2 . . . 2 . . 4 . . . . 1 1 . 1 . . . . . . 1 . . . . . . . . . . . . . Recyclers 3 | . . . . . . . . . . . . . . 1 . 1 . . . . . . 1 . . . . . . . . . . . . . Tunnel 9 | . 2 . . . 2 . . 4 . . . . 1 . . . . . . . . . . . . . . . . . . . . . . . Scanalyzers . | . . . . . . . . . . . . . . . . . . . . . . . . . . . . . . . . . . . . . Garrison Access . | . . . . . . . . . . . . . . . . . . . . . . . . . . . . . . . . . . . . . Data Cores Recovered 3 | . . . . . . . . . . . . . . . . . . . . . . . . . . . . . . . . . . 1 2 . Used . | . . . . . . . . . . . . . . . . . . . . . . . . . . . . . . . . . . . . . Hacking Detections 163 | . 8 . . . 8 9 . 15 . . . . 2 18 . 12 . . . . 6 . 22 . 1 . . 16 . 13 6 . 8 2 10 7 Full Trace Events 41 | . 1 . . . 1 1 . 3 . . . . 1 3 . 5 . . . . 1 . 8 . 1 . . 5 . 2 . . 1 2 5 1 Feedback Events 5 | . . . . . . . . . . . . . 1 1 . 1 . . . . . . 1 . . . . . . . . . . 1 . . Corruption 5 | . . . . . . . . . . . . . 1 1 . 1 . . . . . . 1 . . . . . . . . . . 1 . . Feedback Blocked 1 | . . . . . . . . . . . . . . . . . . . . . . . 1 . . . . . . . . . . . . . Robot Schematics Acquired 9 | . . . . . . . . . . . 3 . . . . . . . 6 . . . . . . . . . . . . . . . . . Robots Built . | . . . . . . . . . . . . . . . . . . . . . . . . . . . . . . . . . . . . . Authchips . | . . . . . . . . . . . . . . . . . . . . . . . . . . . . . . . . . . . . . Time . | . . . . . . . . . . . . . . . . . . . . . . . . . . . . . . . . . . . . . Total Robot Build Rating . | . . . . . . . . . . . . . . . . . . . . . . . . . . . . . . . . . . . . . Part Schematics Acquired 36 | . . . . . . 1 . 1 . . 16 . . 3 . 1 . . 9 . . . 1 . . . . 3 . . 1 . . . . . Parts Built 18 | . . . . . . . . 4 . . . . . 1 . . . . . . 4 . . . . . . 2 . 2 4 . . . 1 . Authchips 5 | . . . . . . . . 1 . . . . . . . . . . . . . . . . . . . . . . 3 . . . 1 . Time 720 | . . . . . . . . 159 . . . . . 53 . . . . . . 175 . . . . . . 84 . 69 138 . . . 42 . Total Part Build Rating 114 | . . . . . . . . 22 . . . . . 6 . . . . . . 28 . . . . . . 8 . 18 24 . . . 8 . Part Studies Acquired 17 | . . . . . . 2 . 3 . . . . . 1 . . . . . . . . 3 . . . . 4 . . . . 3 . 1 . Parts Repaired 10 | . . . . . 1 1 . . . . . . 1 3 . 1 . . . . . . 1 . . . . 1 . 1 . . . . . . Time 599 | . . . . . 32 19 . 80 . . . . 31 192 . 31 . . . . . . 95 . . . . 39 . 80 . . . . . . Parts Recycled . | . . . . . . . . . . . . . . . . . . . . . . . . . . . . . . . . . . . . . Recycled Matter . | . . . . . . . . . . . . . . . . . . . . . . . . . . . . . . . . . . . . . Retrieved Matter . | . . . . . . . . . . . . . . . . . . . . . . . . . . . . . . . . . . . . . Retrieved Components 3 | . 1 . . . . . . 2 . . . . . . . . . . . . . . . . . . . . . . . . . . . . Parts Scanalyzed 8 | . . . . . . 1 . . . . . . . 2 . . . . . . . . 1 . . . . 3 . 1 . . . . . . Part Schematics Acquired 7 | . . . . . . 1 . . . . . . . 2 . . . . . . . . 1 . . . . 3 . . . . . . . . Parts Damaged 2 | . . . . . . . . . . . . . . 1 . . . . . . . . 1 . . . . . . . . . . . . . Bothacking | -11 -10 -10 -10 -9 -8 -7 -7 -7 -7 -7 -7 -7 -6 -6 -6 -6 -6 -6 -6 -5 -5 -5 -5 -5 -5 -5 -4 -4 -4 -4 -4 -4 -3 -2 -1 -1 ------------ Run | Yrd Mat Min Exi Min Mat Fac Was Fac Low Low Zio Dee Pro Fac Was Fac Low Low Dat Pro Fac Was Fac Upp Upp War Pro Fac Was Fac Arm Lab Res Res Acc Com Used RIF Installer . | . . . . . . . . . . . . . . . . . . . . . . . . . . . . . . . . . . . . . Robots Hacked 7 | . . . 4 . . . . . . . . . . . . . . . . . 1 . . . . . . . . . . . . 1 . 1 Non-combat 5 | . . . 3 . . . . . . . . . . . . . . . . . 1 . . . . . . . . . . . . 1 . . Combat 1 | . . . 1 . . . . . . . . . . . . . . . . . . . . . . . . . . . . . . . . . Robot Hacks Applied 25 | . . . 23 . . . . . . . . . . . . . . . . . 1 . . . . . . . . . . . . 1 . . parse_system 24 | . . . 23 . . . . . . . . . . . . . . . . . . . . . . . . . . . . . . 1 . . find_chute 1 | . . . . . . . . . . . . . . . . . . . . . 1 . . . . . . . . . . . . . . . Manual 1 | . . . . . . . . . . . . . . . . . . . . . . . . . . . . . . . . . . . . 1 Relay Couplers Released 5 | . . . . . . . . . . . . . . . . . . . . . . . . . . . . . . . . . . 3 2 . Machine Destruction 5 | . . . . . . . . . . . . . . . . . . . . . . . . . . . . . . . . . . 3 2 . Fabnet Peak Effective % . | . . . . . . . . . . . . . . . . . . . . . . . . . . . . . . . . . . . . . Robots Rewired 6 | . . . . . . . . . . . . . 2 . . . . . . . . . . . . . . . . . 4 . . . . . Allies Hacked . | . . . . . . . . . . . . . . . . . . . . . . . . . . . . . . . . . . . . . Hacks Repelled . | . . . . . . . . . . . . . . . . . . . . . . . . . . . . . . . . . . . . . Allies | -11 -10 -10 -10 -9 -8 -7 -7 -7 -7 -7 -7 -7 -6 -6 -6 -6 -6 -6 -6 -5 -5 -5 -5 -5 -5 -5 -4 -4 -4 -4 -4 -4 -3 -2 -1 -1 -------- Run | Yrd Mat Min Exi Min Mat Fac Was Fac Low Low Zio Dee Pro Fac Was Fac Low Low Dat Pro Fac Was Fac Upp Upp War Pro Fac Was Fac Arm Lab Res Res Acc Com Total Allies 40 | . . 2 . 1 1 . 19 2 . . 4 . 3 . . . . . . . . . 1 . . . . . . 2 4 . . . . 1 Largest Group 19 | . . 2 2 1 2 . 19 15 1 1 4 4 2 2 . . . . . . . . 1 . . . . . . 2 3 . . . . 1 Highest-Rated Group 475 | . . 46 46 31 41 . 475 377 10 10 115 115 82 77 . . . . . . . . 10 . . . . . . 112 90 . . . . 219 Highest-Rated Ally 219 | . . 31 31 31 31 . 35 31 10 10 31 31 41 41 . . . . . . . . 10 . . . . . . 56 30 . . . . 219 Total Orders 63 | . . . . . . . . 2 3 16 . . 6 4 . . 1 8 . 5 . . 4 . 5 1 6 . . . . . . . . 2 STAY 10 | . . . . . . . . 1 . 1 . . 1 . . . . 1 . 1 . . 2 . 1 . 1 . . . . . . . . 1 ROAM 7 | . . . . . . . . . . 7 . . . . . . . . . . . . . . . . . . . . . . . . . . FOLLOW 13 | . . . . . . . . 1 . 6 . . 1 . . . . 1 . 1 . . 2 . 1 . . . . . . . . . . . EXPLORE 2 | . . . . . . . . . . . . . . 1 . . . . . . . . . . . . . . . . . . . . . 1 RETURN 31 | . . . . . . . . . 3 2 . . 4 3 . . 1 6 . 3 . . . . 3 1 5 . . . . . . . . . Ally Attacks 416 | . . 3 . . 13 . 117 175 . . . 64 31 4 . . . . . . . . . . . . . . . 7 . . . . . 2 Total Damage 8767 | . . 44 . . 187 . 3281 2822 . . . 799 965 179 . . . . . . . . . . . . . . . 342 . . . . . 148 Kills 46 | . . 2 . . 1 . 8 19 . . . 9 7 . . . . . . . . . . . . . . . . . . . . . . . Allies Corrupted . | . . . . . . . . . . . . . . . . . . . . . . . . . . . . . . . . . . . . . Allies Melted 7 | . . . . . . . . 1 . . . . . . . . . . . . . . . . . 3 . . . . 3 . . . . . Intel | -11 -10 -10 -10 -9 -8 -7 -7 -7 -7 -7 -7 -7 -6 -6 -6 -6 -6 -6 -6 -5 -5 -5 -5 -5 -5 -5 -4 -4 -4 -4 -4 -4 -3 -2 -1 -1 ------- Run | Yrd Mat Min Exi Min Mat Fac Was Fac Low Low Zio Dee Pro Fac Was Fac Low Low Dat Pro Fac Was Fac Upp Upp War Pro Fac Was Fac Arm Lab Res Res Acc Com Active Infowar (turns) 32927 | 12 1034 1063 408 10 . 778 228 1833 433 538 297 . . 1 . 1458 1131 1542 112 607 1363 487 3425 998 1437 1101 984 2181 324 2569 932 . 44 1096 2242 2259 Optics 24863 | . . . . . . . . . . . . . . . . 1458 1131 1542 112 607 1363 487 3425 998 1437 1101 984 2181 324 2072 . . 44 1096 2242 2259 Structural 4107 | . . . . . . 778 228 1833 433 538 297 . . . . . . . . . . . . . . . . . . . . . . . . . Seismic 2528 | 12 1034 1063 408 10 . . . . . . . . . 1 . . . . . . . . . . . . . . . . . . . . . . T.N.C. 392 | . . . . . . 55 . . . . . . . . . . . . . . . . . . . . . . . . . . . 337 . . Cloaking 11194 | . . . . . . . . . . . . . . . . . . . . . . . 279 998 1313 8 72 1883 324 2185 932 . . 176 1410 1614 ECM 83 | . . . . . . 83 . . . . . . . . . . . . . . . . . . . . . . . . . . . . . . Robot Analysis Total 1 | . . . . . . . . . . . . . . . . . . . . . . . . . . . . . . . . . . . 1 . Derelict Logs Recovered 18 | . . 1 . 1 . . . . 1 2 . . 2 . . . 2 2 . 2 . . . 1 2 . 2 . . . . . . . . . Drone Launches 65 | . . . . . . . . . 3 3 . . 4 5 . . 2 10 . 2 . . . 1 3 1 7 . . . . . . . . 24 Drone Recoveries 49 | . . . . . . . . . 3 3 . . 4 3 . . 1 10 . 3 . . . . 4 1 6 . . . . . . . . 11 Exploration | -11 -10 -10 -10 -9 -8 -7 -7 -7 -7 -7 -7 -7 -6 -6 -6 -6 -6 -6 -6 -5 -5 -5 -5 -5 -5 -5 -4 -4 -4 -4 -4 -4 -3 -2 -1 -1 ------------- Run | Yrd Mat Min Exi Min Mat Fac Was Fac Low Low Zio Dee Pro Fac Was Fac Low Low Dat Pro Fac Was Fac Upp Upp War Pro Fac Was Fac Arm Lab Res Res Acc Com Turns Passed 47780 | 73 1135 1064 408 666 1581 786 228 1833 433 538 1451 3682 1276 2399 505 1886 1131 1542 112 607 1363 487 3425 998 1437 1101 984 2181 324 2698 2327 1200 322 1096 2242 2259 Spaces Moved 35439 | 61 772 651 269 382 812 897 342 3032 780 823 1150 3146 910 1471 206 1133 924 1064 94 454 789 383 1879 872 1162 828 464 1343 378 1488 968 266 454 2106 1020 1666 Core 2 | 1 . . . . . . . . . . . . . . . . . . . . . . . . . . . . . . . . . . . 1 Treads 4 | . 4 . . . . . . . . . . . . . . . . . . . . . . . . . . . . . . . . . . . Legs 20947 | . . . . . . . . . . . 348 1639 910 1471 206 1133 924 1064 94 454 789 383 1879 872 1162 828 464 1336 213 1488 968 114 . 21 1020 1167 Wheels 2942 | 60 768 651 269 382 812 . . . . . . . . . . . . . . . . . . . . . . . . . . . . . . . Hover 4370 | . . . . . . . . . . . . 1507 . . . . . . . . . . . . . . . 7 165 . . 152 454 2085 . . Flight 7174 | . . . . . . 897 342 3032 780 823 802 . . . . . . . . . . . . . . . . . . . . . . . . 498 Fastest Speed 24 | 50 80 135 135 135 135 42 42 39 39 39 39 44 110 103 113 113 113 113 113 113 113 123 111 111 111 110 110 38 38 111 111 38 24 33 102 25 Average Speed 95 | 79 118 135 135 135 149 42 42 40 39 39 121 93 113 110 187 113 113 113 113 113 121 123 121 111 111 110 184 108 79 116 122 90 40 33 104 86 Slowest Speed 355 | 80 320 135 135 135 165 42 42 320 39 39 355 330 117 214 213 113 113 113 113 113 216 123 230 111 111 195 186 116 112 128 189 126 98 105 173 125 Overloaded Moves 35 | . . . . . . . . . . . . . . 6 . . . . . . . . . . . . . . . . . . 13 . . 16 Propulsion Burnouts . | . . . . . . . . . . . . . . . . . . . . . . . . . . . . . . . . . . . . . Robots Hopped 21 | . . . . . . 4 . 8 1 2 . . . . . . . . . . . . . . . . . . . . . . . . . 6 Potential Cave-ins 9 | . . . . . . . . . . . . . . 2 . . . . . . . . . . . . . 2 . . . . . . 2 3 Cave-ins Triggered 1 | . . . . 1 . . . . . . . . . . . . . . . . . . . . . . . . . . . . . . . . Exploration Rate (%) 67 | 4 99 98 63 47 67 21 96 73 92 79 82 93 67 38 97 36 90 82 80 68 26 96 51 95 98 93 68 47 96 57 53 96 19 51 28 52 Regions Visited 36 Branch Regions 19 Pre-discovered Areas 19 | . 2 1 1 1 2 . . 4 . . 1 . 2 . . . . 1 1 . . . . . 2 . 1 . . . . . . . . . Known Exits Taken 16 | . . . . . . . . 1 1 1 . . 1 . . 1 1 . 1 1 . . 1 1 1 . 1 . . 1 . 1 1 . 1 . Unknown Exits Taken 12 | 1 1 1 1 1 1 . . . . . 1 1 . . . . . 1 . . . . . . . 1 . . . . 1 . . 1 . . Scrap Searched 32 | . . 1 . 1 . . . . 3 5 1 . 4 . . . 3 3 . 3 . . . 2 4 . 2 . . . . . . . . . Spaces Dug 290 | . . . . 2 3 6 . 17 3 . . 2 . 23 . 3 . 1 . 1 14 . 43 . 8 . 6 37 . 44 13 . 7 4 24 29 Terrain Destroyed 1549 | 5 9 57 . 13 58 58 . 29 3 13 . 125 30 31 . 3 . 55 . 68 43 . 73 17 10 . 35 179 . 169 29 3 10 14 216 194 Melee 74 | . . . . 2 3 6 . 13 2 . . . . 10 . 3 . 1 . . 12 . 12 . . . . . . 1 4 . . . . 5 Projectile 442 | . . . . . . 2 . 5 1 . . 27 1 16 . . . 18 . 2 2 . 37 . 10 . 8 57 . 86 25 3 10 12 65 55 AOE 1032 | 5 9 57 . 11 55 50 . 11 . 13 . 98 29 5 . . . 36 . 66 29 . 24 17 . . 27 122 . 82 . . . 1 151 134 Terrain Rammed . | . . . . . . . . . . . . . . . . . . . . . . . . . . . . . . . . . . . . . Walls Destroyed . | . . . . . . . . . . . . . . . . . . . . . . . . . . . . . . . . . . . . . Machines Disabled . | . . . . . . . . . . . . . . . . . . . . . . . . . . . . . . . . . . . . . Actions | -11 -10 -10 -10 -9 -8 -7 -7 -7 -7 -7 -7 -7 -6 -6 -6 -6 -6 -6 -6 -5 -5 -5 -5 -5 -5 -5 -4 -4 -4 -4 -4 -4 -3 -2 -1 -1 --------- Run | Yrd Mat Min Exi Min Mat Fac Was Fac Low Low Zio Dee Pro Fac Was Fac Low Low Dat Pro Fac Was Fac Upp Upp War Pro Fac Was Fac Arm Lab Res Res Acc Com Total 46457 | 76 906 827 307 487 1058 1206 418 3517 900 1012 1205 3732 1112 2098 281 1641 1002 1345 99 530 1099 396 2839 896 1284 1006 550 1921 403 2227 1875 1083 578 2421 1931 2189 Wait 6854 | . 8 159 . 58 61 149 59 313 114 166 32 302 127 438 16 392 61 212 5 50 154 3 695 15 93 127 40 373 . 456 628 692 70 120 519 147 Move 35365 | 60 771 650 268 381 811 889 341 3015 777 818 1149 3145 909 1471 205 1132 923 1063 93 453 789 382 1877 871 1161 827 463 1343 377 1488 967 265 453 2105 1019 1654 Hop 20 | . . . . . . 4 . 8 1 2 . . . . . . . . . . . . . . . . . . . . . . . . . 5 Pick Up 311 | 5 24 2 4 1 22 15 . 22 . . 2 26 . 15 2 8 . 1 . 1 14 4 9 1 . 4 1 9 7 11 11 21 7 16 12 34 Fast Attach 345 | 7 2 1 . 1 16 7 4 17 . . 6 54 7 16 1 4 2 2 . . 19 . 20 . 1 14 . 7 1 14 28 6 6 30 21 31 Attach 169 | . 1 . 2 2 7 10 . 3 . . 2 16 . 4 1 6 2 2 . 1 3 . 3 . . 2 1 6 4 7 8 6 4 11 23 32 Detach 52 | . 3 . 2 . 1 . 1 1 . . 1 4 . 1 2 . 2 1 . . 1 . 1 . . 1 . 1 . 3 2 . 1 2 11 10 Swap 335 | . 33 5 . 10 11 7 2 11 5 8 1 20 11 17 1 7 3 10 1 11 14 2 11 4 7 8 7 28 3 15 8 2 1 5 35 11 Drop 526 | 1 14 2 8 2 30 40 6 36 . . 8 65 9 22 6 7 2 2 . 1 27 3 27 1 1 18 . 14 7 15 25 17 14 49 15 32 Fire 2047 | 3 50 8 . 28 59 34 . 30 1 13 3 97 40 69 47 65 . 49 . 13 56 2 169 4 21 5 38 131 . 201 145 74 22 82 273 215 Melee 350 | . . . 23 4 39 51 5 61 2 5 1 1 1 43 . 20 7 3 . . 22 . 23 . . . . 5 . 9 19 . . . . 6 Ram 1 | . . . . . . . . . . . . . . . . . . . . . . . . . . . . . . . . . . . . 1 Kick 26 | . . . . . . . . . . . . . . 2 . . . . . . . . 3 . . . . 4 . 8 1 . . . 3 5 Crush . | . . . . . . . . . . . . . . . . . . . . . . . . . . . . . . . . . . . . . Escape Stasis 7 | . . . . . . . . . . . . . . . . . . . . . . . 1 . . . . . . . . . . . . 6 Rewire 46 | . . . . . . . . . . . . . 8 . . . . . . . . . . . . . . . 4 . 33 . . 1 . . Trap 3 | . . . . . 1 . . . . . . 2 . . . . . . . . . . . . . . . . . . . . . . . . Miscellaneous . | . . . . . . . . . . . . . . . . . . . . . . . . . . . . . . . . . . . . . Route ------- -11/Scrapyard -10/Materials (discovered 6 exits: [*Mat x3] / *Min x2 / [*Sub]) -10/Mines (discovered 3 exits: [*Mat x2] / *Exi) -10/Exiles -9/Mines -8/Materials (discovered 2 exits: *Fac x2) -7/Factory -7/Waste -7/Factory (discovered 6 exits: *Fac x3 / [*Sto] / *Low x2) -7/Lower Caves (discovered 2 exits: *Low / *Zio) -7/Lower Caves (discovered 2 exits: *Fac / *Zio) -7/Zion (discovered 2 exits: [*Dee] / [*Pro]) -7/Deep Caves -6/Proximity Caves -6/Factory (discovered 4 exits: *Fac x2 / *Low x2) -6/Waste -6/Factory (discovered 3 exits: *Fac x2 / *Low) -6/Lower Caves -6/Lower Caves (discovered 2 exits: *Fac / *Dat) -6/Data Miner -5/Proximity Caves -5/Factory -5/Waste -5/Factory (discovered 5 exits: *Fac / *Upp x2 / *Ext x2) -5/Upper Caves -5/Upper Caves (discovered 2 exits: *Fac / *War) -5/Warlord -4/Proximity Caves -4/Factory (discovered 5 exits: *Res x2 / *Upp x2 / Arm) -4/Waste -4/Factory (discovered 5 exits: *Res x2 / *Upp x2 / *Arm) -4/Armory -4/Lab -3/Research (discovered 3 exits: *Res x3) -2/Research (discovered 3 exits: *Acc / Qua x2) -1/Access -1/Command To Epsilon Eridani History --------- Turn | Location | Event 17 | -11/Scrapyard | Discovered new exit (range 15) 74 | -11/Scrapyard | Entered Materials 74 | -10/Materials | Discovered new exit (range 7) 188 | -10/Materials | Discovered new exit (range 10) 321 | -10/Materials | Build established: Mutant 647 | -10/Materials | Discovered new exit (range 7) 715 | -10/Materials | Discovered new exit (range 12) 912 | -10/Materials | Discovered new exit (range 9) 1099 | -10/Materials | Discovered new exit (range 7) 1209 | -10/Materials | Entered Mines 1269 | -10/Mines | Assembled infested the area 1274 | -10/Mines | Assisted by a Guerilla fighting off Assembled 1297 | -10/Mines | Learned location of Storage (-7) 1339 | -10/Mines | Discovered new exit (range 10) 1355 | -10/Mines | Found the Drone Emporium 1361 | -10/Mines | Found Prototype Device 1362 | -10/Mines | Identified Sensor Drone Bay 1425 | -10/Mines | Discovered new exit (range 5) 1661 | -10/Mines | Found DCF Scrap (14 items) 2155 | -10/Mines | Deemed a non-threat by the Exiles lab entrance 2155 | -10/Mines | Discovered new exit (range 5) 2273 | -10/Mines | Entered Exiles 2273 | -10/Exiles | Accompanied by 2 allies 2303 | -10/Exiles | Led the pair of lost Derelicts to a safe place 2316 | -10/Exiles | Met 8R-AWN 2352 | -10/Exiles | Met EX-HEX 2408 | -10/Exiles | Met EX-DEC 2413 | -10/Exiles | Learned location of Zion (-7) 2462 | -10/Exiles | Met EX-BIN 2511 | -10/Exiles | Aligned with FarCom system 2512 | -10/Exiles | Given EX-Vault access code 2544 | -10/Exiles | Opened EX-Vault 2557 | -10/Exiles | Found Flying Fortress v7 2582 | -10/Exiles | Warned to stay clear of 0b10 Research branches 2669 | -10/Exiles | Discovered new exit (range 10) 2681 | -10/Exiles | Left Exiles lab with Flying Fortress v7 2681 | -10/Exiles | Entered Mines 2717 | -9/Mines | Found a hidden stash of uninstalled traps 2776 | -9/Mines | Core integrity fell below 50% 2928 | -9/Mines | Discovered new exit (range 8) 3112 | -9/Mines | Met a Derelict testing a Signal Generator 3213 | -9/Mines | Crushed by falling debris 3213 | -9/Mines | Core integrity fell below 20% 3347 | -9/Mines | Entered Materials 3347 | -8/Materials | Accompanied by 1 ally 3347 | -8/Materials | Evolved 4 slots: Propulsion x1, Utility x3 3640 | -8/Materials | Lost 3 parts (1p2w) 3750 | -8/Materials | Repaired Mni. Grenade Launcher 4016 | -8/Materials | Destroyed 7 combat bots 4311 | -8/Materials | Discovered new exit (range 16) 4892 | -8/Materials | Discovered new exit (range 3) 4928 | -8/Materials | Entered Factory 4928 | -7/Factory | Evolved 2 slots: Propulsion x2 5313 | -7/Factory | Build established: Infiltrator-Mutant 5452 | -7/Factory | Repaired Hrd. Medium Armor Plating 5546 | -7/Factory | Discovered new exit (range 14) 5694 | -7/Factory | Build established: Mutant 5714 | -7/Factory | Manually triggered Chute Trap 5714 | -7/Factory | Sucked down chute 5714 | -7/Factory | Entered Waste 5735 | -7/Waste | Spotted C-40 Crusher 5765 | -7/Waste | Spotted C-40 Crusher 5766 | -7/Waste | Spotted C-40 Crusher 5766 | -7/Waste | Spotted C-40 Crusher 5801 | -7/Waste | Spotted C-40 Crusher 5808 | -7/Waste | Spotted C-40 Crusher 5812 | -7/Waste | Discovered new exit (range 10) 5824 | -7/Waste | Warlord forces began an assault 5836 | -7/Waste | Allies destroyed C-40 Crusher 5916 | -7/Waste | Identified exit to Factory 5942 | -7/Waste | Entered Factory 5942 | -7/Factory | Accompanied by 15 allies 6014 | -7/Factory | Found Prototype Launcher 6014 | -7/Factory | Identified Rocket Array 6116 | -7/Factory | Discovered new exit (range 9) 6119 | -7/Factory | Identified exit to Lower Caves 6146 | -7/Factory | Garrison activated, responded to threat 6221 | -7/Factory | Lost 6 allies 6513 | -7/Factory | P-60 Hacker assimilated allied 0F-VYV(m) 6666 | -7/Factory | Garrison activated, responded to threat 6733 | -7/Factory | Lost 3 allies 6742 | -7/Factory | First assault squad dispatched 6842 | -7/Factory | Discovered exit to Lower Caves (range 15) 6946 | -7/Factory | Discovered new exit (range 15) 7172 | -7/Factory | Discovered new exit (range 16) 7432 | -7/Factory | Discovered new exit (range 9) 7528 | -7/Factory | Discovered new exit (range 8) 7599 | -7/Factory | Fabricated Imp. Trap Extractor (x2) 7732 | -7/Factory | Fabricated Hyp. Mass Driver (x2) 7775 | -7/Factory | Entered Lower Caves 7775 | -7/Lower Caves | Accompanied by 1 ally 7853 | -7/Lower Caves | Entered an active Warlord outpost 7862 | -7/Lower Caves | Learned Extension garrison access intel 7862 | -7/Lower Caves | Learned Extension emergency access door positions 7964 | -7/Lower Caves | A Derelict revealed a hidden shortcut to a safe place 7975 | -7/Lower Caves | Identified exit to Zion 7980 | -7/Lower Caves | Found DCF Scrap (15 items) 8062 | -7/Lower Caves | Discovered new exit (range 16) 8063 | -7/Lower Caves | Learned Factory interactive machine intel 8081 | -7/Lower Caves | Identified exit to Lower Caves 8208 | -7/Lower Caves | Entered another Lower Caves area 8208 | -7/Lower Caves | Accompanied by 1 ally 8222 | -7/Lower Caves | Learned Factory garrison access intel 8234 | -7/Lower Caves | Discovered new exit (range 7) 8241 | -7/Lower Caves | Identified exit to Factory 8273 | -7/Lower Caves | Learned Factory emergency access door positions 8441 | -7/Lower Caves | Discovered exit to Zion (range 8) 8746 | -7/Lower Caves | Entered Zion 8776 | -7/Zion | System corruption cleaned by Quarantine Array 8800 | -7/Zion | Discovered new exit (range 11) 8851 | -7/Zion | Learned Factory garrison access intel 8884 | -7/Zion | Gained Derelict followers 8953 | -7/Zion | Learned Factory emergency access door positions 8969 | -7/Zion | Rebuked by Imprinter 9014 | -7/Zion | Received a visual enhancement algorithm 9026 | -7/Zion | Learned Factory scanalyzer intel 9036 | -7/Zion | Found Prototype Processor 9036 | -7/Zion | Identified Exp. Melee Analysis Suite 9037 | -7/Zion | Found Exp. Core Analyzer 9044 | -7/Zion | Found Prototype Processor 9044 | -7/Zion | Identified Exp. Target Analyzer 9047 | -7/Zion | Found Prototype Processor 9047 | -7/Zion | Identified Exp. Signal Interpreter 9049 | -7/Zion | Found Prototype Processor 9049 | -7/Zion | Identified Exp. Armor Integrity Analyzer 9113 | -7/Zion | Found Exp. Core Analyzer 9831 | -7/Zion | Found Prototype Hackware 10179 | -7/Zion | Discovered new exit (range 4) 10179 | -7/Zion | Saw the warning signs outside the Deep Caves entrance 10197 | -7/Zion | Entered Deep Caves 10197 | -7/Deep Caves | Accompanied by 4 allies 10657 | -7/Deep Caves | Attacked by Z-Imprinter 10705 | -7/Deep Caves | Allies destroyed Z-Imprinter 10729 | -7/Deep Caves | Lost 4 parts (1p1n1u1w) 10813 | -7/Deep Caves | Z-Facility disabled 11010 | -7/Deep Caves | Found Prototype Protection 11011 | -7/Deep Caves | Identified Zio. Weapon Casing 11030 | -7/Deep Caves | Found Prototype Protection 11145 | -7/Deep Caves | Build established: Scavenger-Mutant 11442 | -7/Deep Caves | Lost 6 parts (1p3n1u1w) 11488 | -7/Deep Caves | Identified Zio. Heavy Carapace 11678 | -7/Deep Caves | Spotted Golem 11724 | -7/Deep Caves | Destroyed Golem 11832 | -7/Deep Caves | Spotted Golem 11847 | -7/Deep Caves | Core integrity fell below 50% 11880 | -7/Deep Caves | Destroyed Golem 11907 | -7/Deep Caves | Lost 4 parts (3n1u) 12009 | -7/Deep Caves | Found Zio. Weapon Casing 12036 | -7/Deep Caves | Found Zio. Weapon Casing 12120 | -7/Deep Caves | Found PSU Rigger 12159 | -7/Deep Caves | Triggered Deep Caves wall 12159 | -7/Deep Caves | Spotted Assembler 12159 | -7/Deep Caves | Spotted Assembler 12170 | -7/Deep Caves | Destroyed Assembler 12186 | -7/Deep Caves | Destroyed Assembler 12200 | -7/Deep Caves | Destroyed 38 combat bots 12266 | -7/Deep Caves | Found Zio. Weapon Casing 12740 | -7/Deep Caves | Discovered new exit (range 6) 13422 | -7/Deep Caves | Exposed GOLEM chamber 13426 | -7/Deep Caves | Found GOLEM Unit 13776 | -7/Deep Caves | Found GOLEM Unit 13879 | -7/Deep Caves | Entered Proximity Caves 13881 | -6/Proximity Caves | Greeted by an Infiltrator in a former 0b10 base 13971 | -6/Proximity Caves | Former 0b10 base attacked by MAIN.C 14056 | -6/Proximity Caves | Repaired Hyp. Mass Driver 14136 | -6/Proximity Caves | Spotter reported a threat 14183 | -6/Proximity Caves | Lost 4 allies 14279 | -6/Proximity Caves | 0b10 base defense nominally successful 14286 | -6/Proximity Caves | Lost 5 allies 14408 | -6/Proximity Caves | Lost 10 allies 14475 | -6/Proximity Caves | Learned Factory terminal intel 14732 | -6/Proximity Caves | Received a Behemoth hack from an annoying Tinkerer 15013 | -6/Proximity Caves | Found DCF Scrap (14 items) 15091 | -6/Proximity Caves | Attracted the attention of an 0b10 checkpoint 15113 | -6/Proximity Caves | Discovered exit to Factory (range 16) 15154 | -6/Proximity Caves | Identified Exp. Hacking Suite 15155 | -6/Proximity Caves | Entered Factory 15155 | -6/Factory | Accompanied by 2 allies 15155 | -6/Factory | Evolved 2 slots: Utility x2 15157 | -6/Factory | Loaded intel: 54 interactive machine locations 15158 | -6/Factory | Loaded intel: 26 terminal locations 15159 | -6/Factory | Loaded intel: 4 scanalyzer locations 15160 | -6/Factory | Loaded intel: 4 garrison access locations 15428 | -6/Factory | Repaired Hyp. Mass Driver 15547 | -6/Factory | Discovered new exit (range 7) 15558 | -6/Factory | Identified exit to Factory 15574 | -6/Factory | Garrison activated, responded to threat 15655 | -6/Factory | Repaired Exp. Heat Sink? 15825 | -6/Factory | Discovered new exit (range 6) 15835 | -6/Factory | Identified exit to Lower Caves 15981 | -6/Factory | Watched by a mysterious "MATRIX" hacker 16208 | -6/Factory | Repaired Broken Hyp. Mass Driver? 16807 | -6/Factory | Discovered exit to Factory (range 11) 16827 | -6/Factory | Central database locked down 16906 | -6/Factory | Fabricated Med. Armored Exoskeleton? 17346 | -6/Factory | Build established: Mutant 17554 | -6/Factory | Sucked down chute 17554 | -6/Factory | Entered Waste 17564 | -6/Waste | Spotted C-40 Crusher 17569 | -6/Waste | EMP discharged 17589 | -6/Waste | Spotted C-40 Crusher 17598 | -6/Waste | Destroyed C-40 Crusher 17622 | -6/Waste | Spotted C-40 Crusher 17622 | -6/Waste | Spotted C-40 Crusher 17633 | -6/Waste | Found Quantum Capacitor 17638 | -6/Waste | Destroyed C-40 Crusher 17664 | -6/Waste | Spotted C-40 Crusher 17668 | -6/Waste | Destroyed C-40 Crusher 17669 | -6/Waste | EMP discharged 17669 | -6/Waste | System corruption reached 10% 17684 | -6/Waste | Destroyed C-40 Crusher 17695 | -6/Waste | Found Damper Plating 17742 | -6/Waste | Spotted C-40 Crusher 17748 | -6/Waste | Destroyed C-40 Crusher 17769 | -6/Waste | EMP discharged 17869 | -6/Waste | EMP discharged 17923 | -6/Waste | Destroyed C-40 Crusher 17969 | -6/Waste | EMP discharged 18025 | -6/Waste | Discovered new exit (range 12) 18059 | -6/Waste | Entered Factory 18061 | -6/Factory | Loaded intel: 4 garrison access locations 18356 | -6/Factory | Discovered exit to Factory (range 11) 18593 | -6/Factory | Found Prototype Launcher 18594 | -6/Factory | Identified Scatter Rocket Array 19323 | -6/Factory | Discovered exit to Lower Caves (range 10) 19336 | -6/Factory | Repaired Hyp. Mass Driver? 19359 | -6/Factory | Discovered exit to Factory (range 10) 19945 | -6/Factory | Entered Lower Caves 20225 | -6/Lower Caves | Learned Factory garrison access intel 20433 | -6/Lower Caves | Learned Factory machine intel 20865 | -6/Lower Caves | Spotted B-75 Beast 20901 | -6/Lower Caves | Destroyed B-75 Beast 20926 | -6/Lower Caves | Discovered new exit (range 19) 20975 | -6/Lower Caves | Identified exit to Lower Caves 21076 | -6/Lower Caves | Entered another Lower Caves area 21076 | -6/Lower Caves | Accompanied by 1 ally 21174 | -6/Lower Caves | Discovered exit to Factory (range 8) 21414 | -6/Lower Caves | Found Alien Artifact 21414 | -6/Lower Caves | Identified Core Expander 21414 | -6/Lower Caves | Installed Core Expander, added new Weapon slot 21877 | -6/Lower Caves | Learned Factory stockpile data 22302 | -6/Lower Caves | Discovered new exit (range 5) 22320 | -6/Lower Caves | Encountered a Warlord checkpoint 22618 | -6/Lower Caves | Entered Data Miner 22618 | -6/Data Miner | Accompanied by 1 ally 22618 | -6/Data Miner | Discovered new exit (range 6) 22633 | -6/Data Miner | Met Data Miner 22663 | -6/Data Miner | Learned location of Section 7 (-2) 22663 | -6/Data Miner | Acquired the access code to Warlord's prototype stash 22683 | -6/Data Miner | Received God Mode back door access code from Data Miner 22727 | -6/Data Miner | Identified exit to Proximity Caves 22730 | -6/Data Miner | Entered Proximity Caves 22730 | -5/Proximity Caves | Accompanied by 1 ally 22763 | -5/Proximity Caves | Learned Factory emergency access door positions 22835 | -5/Proximity Caves | Spotter reported a threat 23022 | -5/Proximity Caves | Acquired the password to a Derelict Tinkerer's latest research 23031 | -5/Proximity Caves | Found Prototype Special Weapon 23075 | -5/Proximity Caves | Spotted B-75 Beast 23176 | -5/Proximity Caves | Discovered exit to Factory (range 18) 23337 | -5/Proximity Caves | Entered Factory 23337 | -5/Factory | Evolved 2 slots: Utility x2 23340 | -5/Factory | Loaded intel: 252 machine locations 23341 | -5/Factory | Loaded intel: 4 garrison access locations 23655 | -5/Factory | Incoming investigation squad redirected 24124 | -5/Factory | Garrison activated, responded to threat 24513 | -5/Factory | Fabricated Adv. Hardlight Generator? 24531 | -5/Factory | Fabricated Hyp. Mass Driver (x2) 24700 | -5/Factory | Sucked down chute 24700 | -5/Factory | Entered Waste 24700 | -5/Waste | The area was eerily silent 24943 | -5/Waste | Discovered new exit (range 12) 25009 | -5/Waste | Found Fusion Bomb Launcher 25187 | -5/Waste | Entered Factory 25927 | -5/Factory | Incoming investigation squad redirected 26323 | -5/Factory | Incoming investigation squad redirected 26661 | -5/Factory | Build established: Hacker-Mutant 27250 | -5/Factory | Identified exit to Upper Caves 27250 | -5/Factory | Identified exit to Extension 27303 | -5/Factory | Discovered new exit (range 21) 28082 | -5/Factory | Targeted by mysterious "MATRIX" hacker 28187 | -5/Factory | First assault squad dispatched 28206 | -5/Factory | Incoming assault squad redirected 28487 | -5/Factory | Build established: Scientist-Mutant 28594 | -5/Factory | Repaired Broken Antigrav Array 28612 | -5/Factory | Entered Upper Caves 28764 | -5/Upper Caves | Encountered a Warlord checkpoint 28904 | -5/Upper Caves | Build established: Mutant 28933 | -5/Upper Caves | Found DCF Scrap (14 items) 29017 | -5/Upper Caves | Discovered new exit (range 9) 29029 | -5/Upper Caves | Identified exit to Upper Caves 29346 | -5/Upper Caves | Learned Factory emergency access door positions 29610 | -5/Upper Caves | Entered another Upper Caves area 29610 | -5/Upper Caves | Accompanied by 1 ally 29611 | -5/Upper Caves | Identified exit to Warlord 29640 | -5/Upper Caves | Discovered new exit (range 21) 29663 | -5/Upper Caves | Learned Factory trap positions 29663 | -5/Upper Caves | Learned Armory stockpile data 29686 | -5/Upper Caves | Entered an active Warlord outpost 29801 | -5/Upper Caves | Attracted the attention of an 0b10 base 29849 | -5/Upper Caves | Learned Research terminal intel 29849 | -5/Upper Caves | Learned Research trap positions 30025 | -5/Upper Caves | Identified exit to Factory 30026 | -5/Upper Caves | Learned Factory terminal intel 30360 | -5/Upper Caves | Learned location of Warlord (-5) 30754 | -5/Upper Caves | Attracted the attention of an 0b10 checkpoint 31047 | -5/Upper Caves | Entered Warlord 31094 | -5/Warlord | System corruption cleaned by Quarantine Array 31191 | -5/Warlord | Met Warlord 31216 | -5/Warlord | Warlord's base attacked by MAIN.C 31534 | -5/Warlord | Found Prototype Piercing Weapon 31534 | -5/Warlord | Identified Vortex Lance 31566 | -5/Warlord | Warlord forces counterattacked 31584 | -5/Warlord | Opened Warlord's prototype stash 31599 | -5/Warlord | Found Prototype Device 31599 | -5/Warlord | Identified Exp. Cloaking Device 31609 | -5/Warlord | Found Prototype Processor 31609 | -5/Warlord | Identified Spectral Analyzer 31891 | -5/Warlord | Warlord base infiltrated, sounded retreat 31922 | -5/Warlord | Spotted B-86 Titan 32073 | -5/Warlord | Lost 4 allies 32084 | -5/Warlord | Discovered new exit (range 12) 32092 | -5/Warlord | Spotted Striker 32120 | -5/Warlord | Lost 4 allies 32148 | -5/Warlord | Entered Proximity Caves 32169 | -4/Proximity Caves | Found Alien Artifact 32645 | -4/Proximity Caves | Spotted B-86 Titan 32919 | -4/Proximity Caves | Learned location of Armory (-4) 33083 | -4/Proximity Caves | Discovered exit to Factory (range 5) 33087 | -4/Proximity Caves | Learned Research security intel 33132 | -4/Proximity Caves | Entered Factory 33132 | -4/Factory | Evolved 2 slots: Power x1, Propulsion x1 33133 | -4/Factory | Identified exit to Research 33134 | -4/Factory | Loaded intel: 107 trap records 33136 | -4/Factory | Loaded intel: 26 terminal locations 33223 | -4/Factory | Incoming investigation squad redirected 33233 | -4/Factory | Found Quantum Capacitor 33291 | -4/Factory | Fabricated Adv. Terrain Scan Processor? 33292 | -4/Factory | Destroyed 7 combat bots 33322 | -4/Factory | Incoming investigation squad redirected 33482 | -4/Factory | Found Unknown Device 33482 | -4/Factory | Identified Launcher Loader 33537 | -4/Factory | Found Prototype Hackware 33543 | -4/Factory | Identified Exp. System Shield 33721 | -4/Factory | Spotted B-86 Titan 33826 | -4/Factory | Incoming investigation squad redirected 33862 | -4/Factory | Discovered new exit (range 8) 34023 | -4/Factory | Discovered exit to Research (range 9) 34028 | -4/Factory | Spotted CY-PHR 34044 | -4/Factory | Destroyed CY-PHR 34078 | -4/Factory | Lost 3 parts (1u2w) 34551 | -4/Factory | Build established: Hacker-Mutant 34579 | -4/Factory | Spotted B-86 Titan 34797 | -4/Factory | Identified Dimensional Node Initializer 34864 | -4/Factory | Incoming investigation squad redirected 34887 | -4/Factory | Repaired Broken Med. Armored Exoskeleton+ 34915 | -4/Factory | Found Prototype Launcher 34915 | -4/Factory | Identified Com. Tesla Bomb Launcher 35129 | -4/Factory | Identified exit to Upper Caves 35129 | -4/Factory | Identified exit to Armory 35313 | -4/Factory | Sucked down chute 35313 | -4/Factory | Entered Waste 35313 | -4/Waste | The area was eerily silent 35350 | -4/Waste | Discovered new exit (range 12) 35637 | -4/Waste | Entered Factory 35695 | -4/Factory | Discovered exit to Research (range 23) 36150 | -4/Factory | Repaired Cld. Plasma Cannon 36558 | -4/Factory | Incoming investigation squad redirected 36924 | -4/Factory | Discovered exit to Upper Caves (range 10) 37137 | -4/Factory | First assault squad dispatched 37421 | -4/Factory | Discovered exit to Research (range 20) 37431 | -4/Factory | Fabricated Cmb. Linear Gravjet? 38004 | -4/Factory | Build established: Mutant 38155 | -4/Factory | System corruption reached 10% 38257 | -4/Factory | Lost 3 parts (1n1u1w) 38335 | -4/Factory | Entered Armory 39167 | -4/Armory | Fabricated System Restoration Module (x2) 39325 | -4/Armory | Build established: Hacker-Mutant 39425 | -4/Armory | Fabricated Hvy. Armored Exoskeleton (x1) 39504 | -4/Armory | Fabricated Cld. Antigrav System (x1) 39835 | -4/Armory | First assault squad dispatched 39934 | -4/Armory | Core integrity fell below 50% 40000 | -4/Armory | Lost 6 parts (1p1n2u2w) 40106 | -4/Armory | Incoming assault squad redirected 40242 | -4/Armory | Lost 3 parts (2u1w) 40243 | -4/Armory | Destroyed 7 combat bots 40535 | -4/Armory | Lost 4 allies 40555 | -4/Armory | Lost 6 parts (1p3u2w) 40575 | -4/Armory | Build established: Golem 40660 | -4/Armory | Discovered new exit (range 3) 40662 | -4/Armory | Entered Lab 40662 | -4/Lab | Discovered exit to Research (range 9) 40683 | -4/Lab | Unable to decrypt terminal 40683 | -4/Lab | Unable to decrypt terminal 41258 | -4/Lab | Detected for breach 41262 | -4/Lab | Gained access to the hidden lab's interior 41267 | -4/Lab | Confronted by A5 41285 | -4/Lab | Core integrity fell below 20% 41336 | -4/Lab | Found Prototype Energy Gun 41336 | -4/Lab | Identified Hyp. EM Gauss Rifle 41341 | -4/Lab | Found Prototype Energy Cannon 41345 | -4/Lab | Found Prototype Protection 41345 | -4/Lab | Identified Exp. Powered Armor 41372 | -4/Lab | Identified Warp Cannon 41380 | -4/Lab | Destroyed A5 41409 | -4/Lab | Lost 5 parts (1p3u1w) 41430 | -4/Lab | Unable to decrypt terminal 41430 | -4/Lab | Found Alien Artifact 41430 | -4/Lab | Identified LC Capacitor 41487 | -4/Lab | Found Prototype Hackware 41554 | -4/Lab | Found Alien Artifact 41554 | -4/Lab | Identified Integrated Mediator 41554 | -4/Lab | Installed Integrated Mediator, increased core attachment efficiency 41560 | -4/Lab | Found Alien Artifact 41567 | -4/Lab | Found Alien Artifact 41766 | -4/Lab | Identified Core Regenerator 41766 | -4/Lab | Used Core Regenerator, restored core integrity (+287) 41824 | -4/Lab | Found Prototype Special Weapon 41862 | -4/Lab | Entered Research 41862 | -3/Research | Evolved 2 slots: Utility x2 41863 | -3/Research | Loaded intel: 93 trap records 41865 | -3/Research | Loaded intel: 24 terminal locations 41906 | -3/Research | Identified Deep Network Scanner 42067 | -3/Research | Identified exit to Research 42142 | -3/Research | Identified Gui. Remote Datajack 42166 | -3/Research | Unchained authorized (CL-0N3) 42184 | -3/Research | Entered another Research area 42184 | -2/Research | Warlord forces began assault on 0b10 42184 | -2/Research | Evolved 2 slots: Propulsion x1, Utility x1 42213 | -2/Research | Identified exit to Quarantine 42294 | -2/Research | Research machine network offline 42389 | -2/Research | Met up with Warlord 42394 | -2/Research | Discovered new exit (range 15) 42573 | -2/Research | Build established: Hacker-Scout 42604 | -2/Research | Found Prototype Device 42604 | -2/Research | Identified Exp. Thermal Shield 42608 | -2/Research | Found Exp. Thermal Shield 42634 | -2/Research | Spotted Striker 42634 | -2/Research | Spotted Striker 42664 | -2/Research | Borebot progress halted 42665 | -2/Research | Spotted Tracker 42680 | -2/Research | Lost 4 allies 42682 | -2/Research | Borebot progress halted 42696 | -2/Research | Borebot progress halted 42726 | -2/Research | Found Prototype Device 42726 | -2/Research | Identified Exp. Phase Shifter 42731 | -2/Research | Found Prototype Energy Gun 42731 | -2/Research | Identified Immobilizer 42787 | -2/Research | Spotted Executioner 42797 | -2/Research | Spotted Striker 42803 | -2/Research | Spotted Striker 42821 | -2/Research | P-80 Master assimilated allied 95-Y34(K) 42836 | -2/Research | Destroyed Executioner 42850 | -2/Research | Spotted Executioner 42895 | -2/Research | Spotted Striker 42905 | -2/Research | Build established: Hacker-Sprinter 42911 | -2/Research | Spotted Striker 42941 | -2/Research | Spotted Tracker 42941 | -2/Research | Spotted Tracker 42975 | -2/Research | Spotted Combat Programmer 43022 | -2/Research | Destroyed Executioner 43093 | -2/Research | Spotted Executioner 43093 | -2/Research | Spotted Striker 43105 | -2/Research | Destroyed Executioner 43150 | -2/Research | Spotted B-90 Cyclops 43166 | -2/Research | Spotted B-90 Cyclops 43208 | -2/Research | Warlord invited to help at Command 43208 | -2/Research | Given Cave Seal Controls access code 43256 | -2/Research | Found Exp. Phase Shifter 43280 | -2/Research | Entered Access 43280 | -1/Access | Evolved 2 slots: Power x1, Utility x1 43463 | -1/Access | Energy Cycler disabled 43478 | -1/Access | Garrison activated, responded to threat 43530 | -1/Access | First assault squad dispatched 43541 | -1/Access | Destroyed 17 combat bots 43562 | -1/Access | Build established: Scavenger-Tank 43601 | -1/Access | Fabricated Hvy. Armored Exoskeleton (x1) 43749 | -1/Access | Spotted B-99 Colossus 43810 | -1/Access | Garrison activated, responded to threat 43953 | -1/Access | Spotted B-99 Colossus 44135 | -1/Access | Central database locked down 44292 | -1/Access | Identified exit to Command 44361 | -1/Access | Intercept squad dispatched 44379 | -1/Access | Spotted Tracker 44382 | -1/Access | Spotted Tracker 44385 | -1/Access | Destroyed Tracker 44391 | -1/Access | Destroyed Tracker 44399 | -1/Access | Spotted Combat Programmer 44405 | -1/Access | Destroyed Combat Programmer 44423 | -1/Access | Spotted Combat Programmer 44440 | -1/Access | Destroyed Combat Programmer 44444 | -1/Access | Found Exp. Targeting Computer 44491 | -1/Access | Destroyed 12 combat bots 44616 | -1/Access | Destroyed 10 combat bots 44667 | -1/Access | Found Powered Armor 44816 | -1/Access | Garrison activated, responded to threat 44864 | -1/Access | Destroyed 7 combat bots 44910 | -1/Access | High security lockdown imminent 44931 | -1/Access | Intercept squad dispatched 44945 | -1/Access | Lost 3 parts (1u2w) 44954 | -1/Access | Spotted Tracker 44955 | -1/Access | Spotted Tracker 44979 | -1/Access | Destroyed Tracker 44989 | -1/Access | Destroyed Tracker 44990 | -1/Access | High security lockdown engaged 45029 | -1/Access | Spotted Combat Programmer 45036 | -1/Access | Spotted Combat Programmer 45064 | -1/Access | System corruption reached 10% 45130 | -1/Access | Lost 9 parts (1p3n3u2w) 45498 | -1/Access | Build established: Hacker-Tank 45522 | -1/Access | Entered Command 45772 | -1/Command | First assault squad dispatched 46332 | -1/Command | Found Unknown Protection 46332 | -1/Command | Identified Adv. Powered Armor 46897 | -1/Command | Disengaged cave seal 46897 | -1/Command | Derelicts emerged from the dark tunnel 46897 | -1/Command | Welcomed Warlord to Command 46919 | -1/Command | Lost 7 allies 46992 | -1/Command | High security lockdown imminent 47025 | -1/Command | Lost 4 allies 47029 | -1/Command | Spotted M Guard 47029 | -1/Command | Spotted M Guard 47029 | -1/Command | Spotted Combat Programmer 47030 | -1/Command | Spotted Combat Programmer 47054 | -1/Command | Destroyed M Guard 47072 | -1/Command | High security lockdown engaged 47081 | -1/Command | All MAIN.C guards destroyed 47090 | -1/Command | Warlord commented on Warlord statues 47141 | -1/Command | Found Prototype Reactor 47249 | -1/Command | Spotted Executioner 47257 | -1/Command | Spotted 3F-8DP(L) 47260 | -1/Command | Destroyed Executioner 47271 | -1/Command | Spotted Investigator 47278 | -1/Command | Warlord destroyed during the assault 47279 | -1/Command | Scanned by Researcher 47320 | -1/Command | P-80 Master assimilated allied W9-I7C(d) 47349 | -1/Command | Destroyed 3F-8DP(L) 47376 | -1/Command | Lost 11 parts (2p2n6u1w) 47387 | -1/Command | Spotted Striker 47389 | -1/Command | Found Exp. Core Analyzer 47392 | -1/Command | Found Exp. Targeting Computer 47418 | -1/Command | Destroyed Striker 47421 | -1/Command | Spotted Striker 47421 | -1/Command | Spotted Striker 47460 | -1/Command | Lost 13 parts (2p4n4u3w) 47479 | -1/Command | Destroyed Striker 47481 | -1/Command | Destroyed Striker 47529 | -1/Command | Found Exp. Melee Analysis Suite 47540 | -1/Command | Identified Zero-point Reactor 47644 | -1/Command | Found Adv. Force Booster 47722 | -1/Command | Phase Generator disabled 47727 | -1/Command | Found Gamma Bomb Array 47749 | -1/Command | Spotted Alpha 7 47749 | -1/Command | Spotted Alpha 7 47749 | -1/Command | Spotted Striker 47749 | -1/Command | Spotted Striker 47749 | -1/Command | Spotted Executioner 47749 | -1/Command | Spotted Executioner 47749 | -1/Command | Spotted Executioner 47749 | -1/Command | Spotted Executioner 47750 | -1/Command | Discovered new exit (range 19) 47750 | -1/Command | Spotted B-99 Colossus 47750 | -1/Command | Spotted B-99 Colossus 47753 | -1/Command | Core integrity fell below 50% 47769 | -1/Command | Befriended a Behemoth using the annoying Tinkerer's hack 47777 | -1/Command | Core integrity fell below 20% 47781 | *** | Escaped! Last Messages --------------- 47771_ Slug penetrates C-57 Dissector. 47772_ Acquired Impulse Thruster Array. 47773_ Penetrated by Slug. 47773_ Slug penetrates Wall. 47774_ B-99 Colossus suffers critical hit (Destroy). 47774_ C-57 Dissector destroyed. 47774_ Exp. Melee Analysis Suite severed. 47775_ Slug penetrates B-99 Colossus. 47775_ Acquired Adv. Surge Thruster. 47775_ Slug penetrates B-99 Colossus. 47776_ B-99 Colossus destroyed. 47778_ Penetrated by Slug. 47778_ Slug penetrates Access Shell. 47779_ The Access Shell folds into the floor. 47780_ Penetrated by Slug. 47780_ Knocked back. 47780_ Penetrated by Slug. 47780_ Adv. Surge Thruster destroyed. 47780_ Slug penetrates Reinforced Barrier. Map ----- +----------------------------------------------------+ | ?????####""+####### #########+#######[* + | | ?????# *[* # #?# ## = "" # | | ?????# ! =%%[ # #?# ## """" # | | #????#==[ !!= "#### #?# [ ## """" # | | ######// * ##??## ##?# ## "" # | | *=![*#%== ###### #### ##+######### | | %!!!%+== # # + ## #???????? | | ###|=# * "" # # ####"####### #???????? | | ###!=# """" + # #??## # #???????? | | #""* # """" # + #???# # ######### | | #"T # "" # # #???# + | | ### # ###### #???# ########+## | | ??# # +???? #???# #??# | | ??# ########+#####???#######???# #??# | | ??# #??????# #?????????????????########??# | | ??# ######## #???????????????????????????# | | ??# #???????????????????????????# | | ??# ##########???????????????????????????# ! | | ??# #????????????????????????????????????# !! | | ??# #????????????##############??????????# | | ??# #???########## #??????????# | | ??# #??## # #??????????# | | ??# #### %% #??????????# "" | | ??# ## % #??????????# """ | | ??# ! mE ##?????????# "R | | ### %!% 7 c c"@ ;#?????????# """ | | #%!] #E7! "" ##?????????# """ | | !!*!%!EE BB % #??????????# | | ###* *# % BB #??????????# [= | | # # ^ #??????????###### # | | # ## ##### # #???????????????### | | # #####???### #???????????????# | | # #?????????###############???????????????# | | # #???????????????????????????????????????## | | + #????????????????????????????????????????#" | | # #????????????????????????????????????????## | | # #?????????????????????????????????????????# | | # #?????????????????????????????????????????# | | # #?????????????????????????????????????????# | | #= #?????????????????????????????????????????# | | # #?????????????????????????????????????????# | | # #?????????????????????????????????????????# | | # #?????????????????????????????????????????# | | ###### #?????????????????????????????????????????# | | ??????##?????????????????????????????????????????? | | ?????????????????????????????????????????????????? | | ?????????????????????????????????????????????????? | | ?????????????????????????????????????????????????? | | ?????????????????????????????????????????????????? | | ?????????????????????????????????????????????????? | +----------------------------------------------------+ Best States ------------- Heat Dissipation 104 Coolant Potential 65 Energy Generation 100 Energy Capacity 1690 Matter Stores 300 Matter Capacity 600 Sight Range 24 Terrain Scan Density 10 ECM Strength 1 Cloak Strength 4 Power Amplification 40 Additional Mass Support 20 Corruption Block 20 Armor Coverage 1600 Resistance: KI 30 Resistance: TH 30 Resistance: EX 15 Resistance: EM 90 Resistance: I 15 Resistance: S 15 Resistance: P 15 Core Shielding 30 Utility Shielding 90 Weapon Shielding 100 Point Defense Rating 240 Weapon Cycling 20 Melee Speed Boost 20 Phase Shifting 20 Evasion (%) 82 Targeting Accuracy 20 Melee Accuracy 12 Target Analysis 8 Core Analysis 12 Recoil Reduction 2 Particle Charging 25 Offensive Hacking 35 Defensive Hacking 16 Authchip Count 4 Item Schematics ----------------- System Restoration Module | -7/Factory | Scanalyzed Imp. Trap Extractor | -7/Factory | Hacked Imp. Heavy Armor Plating | -7/Zion | Archive Gauss Cannon | -7/Zion | Archive HERF Cannon | -7/Zion | Archive Fusion Compressor | -7/Zion | Archive Med. Treads | -7/Zion | Archive Transmission Jammer | -7/Zion | Archive Drone Bay | -7/Zion | Archive Imp. Kinecellerator | -7/Zion | Archive Shock Absorption System | -7/Zion | Archive Imp. Actuator Array | -7/Zion | Archive Imp. Melee Analysis Suite | -7/Zion | Archive Force Field | -7/Zion | Archive Adv. Terrain Scan Processor | -7/Zion | Archive Component Analysis Suite | -7/Zion | Archive Lgt. Fission Core | -7/Zion | Archive Imp. Component Analysis Suite | -7/Zion | Archive Hyp. Mass Driver | -6/Factory | Scanalyzed Med. Armored Exoskeleton | -6/Factory | Hacked Exp. Weapon Shielding | -6/Factory | Scanalyzed Field Propulsion Array | -6/Factory | Downloaded Adv. Corruption Screen | -6/Data Miner | Free Antimatter Reactor | -6/Data Miner | Free Imp. Remote Shield | -6/Data Miner | Free Imp. Gyrokinetic Inverter | -6/Data Miner | Free Hvy. Proton Missile Launcher | -6/Data Miner | Free Prc. Energy Filter | -6/Data Miner | Free Enh. Flexi-carbon Leg | -6/Data Miner | Free Lgt. Regenerative Plating | -6/Data Miner | Free Combat Drone Bay | -6/Data Miner | Free Antigrav Array | -5/Factory | Scanalyzed Cld. Antigrav System | -4/Factory | Scanalyzed Cmb. Linear Gravjet | -4/Factory | Scanalyzed Quantum Capacitor | -4/Factory | Scanalyzed Hvy. Armored Exoskeleton | -4/Armory | Hacked Robot Schematics ------------------ A-02 Transporter | -7/Zion | Archive L-41 Fighter | -7/Zion | Archive O-24 Administrator | -7/Zion | Archive A-15 Conveyor | -6/Data Miner | Free S-27 Virus | -6/Data Miner | Free X-67 Chaingunner | -6/Data Miner | Free A-27 Freighter | -6/Data Miner | Free B-60 Warrior | -6/Data Miner | Free G-67 Veteran | -6/Data Miner | Free Fabricated ------------ Imp. Trap Extractor | x2 | -7/Factory | Authchip Hyp. Mass Driver | x2 | -7/Factory | Preloaded Med. Armored Exoskeleton | x1 | -6/Factory Adv. Hardlight Generator | x2 | -5/Factory | Preloaded Hyp. Mass Driver | x2 | -5/Factory | Preloaded Adv. Terrain Scan Processor | x2 | -4/Factory Cmb. Linear Gravjet | x2 | -4/Factory | Preloaded System Restoration Module | x2 | -4/Armory | Authchip Hvy. Armored Exoskeleton | x1 | -4/Armory | Authchip Cld. Antigrav System | x1 | -4/Armory | Authchip Hvy. Armored Exoskeleton | x1 | -1/Access | Authchip Repaired ---------- Mni. Grenade Launcher | 36% | -8/Materials Hrd. Medium Armor Plating | 36% | -7/Factory Hyp. Mass Driver | 49% | -6/Proximity Caves Hyp. Mass Driver | 58% | -6/Factory Exp. Heat Sink | 33% | -6/Factory Hyp. Mass Driver | 99% | -6/Factory | Broken Hyp. Mass Driver | 40% | -6/Factory Antigrav Array | 16% | -5/Factory | Broken Med. Armored Exoskeleton | 29% | -4/Factory | Broken Cld. Plasma Cannon | 5% | -4/Factory Studied --------- Hvy. Flail | -7/Factory | Hacked Hvy. Rocket Launcher | -7/Factory | Hacked Imp. EM Pulse Cannon | -7/Factory | Hacked Xenon Bombardment Thruster | -7/Factory | Hacked Cesium-ion Thruster | -7/Factory | Hacked Flexi-carbon Leg | -6/Factory | Hacked Med. Armored Exoskeleton | -5/Factory | Hacked Hyp. Mass Driver | -5/Factory | Hacked Thunder Leg | -5/Factory | Hacked Antigrav Array | -4/Factory | Hacked Fusion Bomb Launcher | -4/Factory | Hacked Shield Leg | -4/Factory | Hacked Micro-nuke Launcher | -4/Factory | Hacked Cmb. Linear Gravjet | -3/Research | Hacked Centrium Leg | -3/Research | Hacked Nova Cannon | -3/Research | Hacked Hvy. Armored Exoskeleton | -1/Access | Hacked Alien Tech Used ----------------- Core Expander LC Capacitor Integrated Mediator Core Regenerator Dimensional Node Initializer Achievements -------------- None Challenges ------------ None Game ------ Seed MetafieldMiniDisplacer Manual? 0 Play Time 08:30:23 Cumulative 1070.0 hours Start 2026.09.03 @ 02:43:55 End 2026.09.05 @ 18:43:10 Sessions 5 Manual Loads 0 Difficulty Rogue Special Mode None Game No. 296 Rogue 296 Adventurer 0 Explorer 0 Win Type 0 Total 49 Types 14/11/12/2/2/0/4/1/1/2 Lore% 97 Gallery% 91 Achievement% 87 Wizard Run 0 Options --------- Layout 1 ASCII 0 Keyboard 0 Movement Mouse Keybinds 0 Fullscreen 2 Font 32/SmallcapsGlow Map View 50x35 Zoom Use 0% Tactical HUD 1 Map Filters NONE Filters NONE Steam 1 RUN: a413adb0-6cc1-4a5c-8244-defe9a4d2353